Workbook

Sheet App I-8 Instructions
A1: Appendix I-8: Instructions
A2: B3 Guidelines - Version 3.0
A4: Instructions for Using the Daylighting Factor Calculator
A5: This section describes proper use of the tool provided for conceptual level and schematic design level calculations. The spreadsheet tool uses fundamental algorithms and has been bench tested against RADIANCE, the most accurate computer simulation tool for lighting and daylighting available[2]. The current tool allows up to windows (3 vision and 3 clerestorey only on one wall of a room.
A6: Note: Users running Microsoft Excel 2007 or later must enable macros for the proper working of the daylighting tool. Click the 'Options' button on the main ribbon bar and select 'enable this content'.
A7: The tool uses a standard CIE overcast sky to calculate the Daylight Factors[3] (DF) and can therefore be used for any regular orthogonal space in any location. However, the Report makes specific use of sky data pertaining to Minnesota.
A8: Defaults
A9: 1. Overcast Sky
A10: ="3. A Minimum "&TEXT(minDF,"0.0%")&" DF is required in 75% of the Grid" -> 3. A Minimum 1.0% DF is required in 75% of the Grid
A11: 4. The grid automatically adjusts to provide a granularity of 20 X 20 points in any room.
A12: 5. The limiting uniformity ratio at the work plane 10:1
A13: Inputs
A14: 1 | B14: Room Width[4]
A15: 2 | B15: Room Depth[5]
A16: 3 | B16: Ceiling Height
A17: 4 | B17: Number of Windows (distributed horizontally in the wall, max of 3)
A18: 5 | B18: Width of each window
A19: 6 | B19: Sill height of the vision windows
A20: 7 | B20: Head height of the vision windows
A21: 8 | B21: Sill height of the Clerestory windows if any[1]
A22: 9 | B22: Head height of the Clerestory windows if any[2]
A23: 10 | B23: Ceiling Reflectance (typically between 75 -95 % for white ceilings)
A24: 11 | B24: Wall Reflectance[3]
A25: 12 | B25: Floor Reflectance (typically between 20 -40 % for carpets)
A26: 13 | B26: Glass Visible Transmittance (VT)
A27: How to use
A28: Begin on the "tool" sheet tab. You can compare 2 alternatives side by side. Enter information only in the yellow cells at the top. Press the “calculate" button each time you wish to see the results of a scenario. The calculate button calculates both alternatives at once. Summary results are shown in red text at the top. To see grid points with similar daylight factor values, press the “Do Isocontours” button AFTER the calculations have been performed. Press “Color for LEED” button to show colors for Minimum Daylight Factor and recommended Uniformity Ratio. A report of inputs and results is provided on the Report sheet tab. Fill in the yellow cells at the top of the sheet tab and print for your record.
A29: You may enter the results for each room or space type in the table on sheet tab ‘Summary Form’ to calculate the overall percentage of occupied spaces that meet the minimum daylight factor.
A30: Outputs
A31: 1. DF on a 20X20 grid with coloring of cells by DF achieved
A32: 2. Minimum & maximum DF achieved
A33: 3. % area that achieves minimum DF
A34: 4. % area that exceeds the maximum uniformity ratio
A35: 5. Average Task Illuminance achieved by daylight over an entire overcast day in each month
A36: 6. % of Design Ambient Illuminance achieved by daylight over an entire overcast day in each month
A39: Factors not included in this version that also affect daylighting
A40: 1. Partition heights and furniture, and their reflectances
A41: 2. Shading devices and light shelves
A43: Footnotes
A44: 1 Use only the tabs labeled Tool and Report to complete Summary Form I-D.1. Use of other tabs will render the results inaccurate.
A45: 2 The accuracy of the spreadsheet when used within the limits allowed is 90% to 100%. It is most accurate when the measured points are in front of the window and more than 1 head height away from it.
A46: 3 The Daylight Factor is a ratio of the light delivered (inside at the work surface) to the diffuse light available outside.
A47: 4 For open office plans a structural bay can be considered as a room width.
A48: 5 Deep rooms will require high ceilings and window head heights or very high visible transmittance of the glass or highly reflective surfaces in order to meet the performance criteria.
A49: 6 The clerestory sill height should be equal to or greater than the head height of the vision window.
A50: 7 The clerestory head height cannot be greater than the ceiling height.
A51: 8 Light colored walls are very important to the appearance of room brightness and visual comfort.
A52: 9 Ambient light levels range from 30 to 50 foot candles for most common task area functions. Consult the IESNA Handbook

Sheet Tool
B1: Appendix I-8: Daylighting Factor Calculator
B2: B3 Guidelines - Version 3.0
B4: © The Weidt Group 2011 | Q4: A L T E R N A T I V E 1 | V4: Geometry | X4: Geometry | AC4: A L T E R N A T I V E 2 | AR4: © The Weidt Group 2011
Q5: All dimensions are in feet | U5: Room Width | V5: 30 | X5: 30 | Y5: =U5 -> Room Width | AC5: All dimensions are in feet
U6: Room Depth | V6: 30 | X6: 30 | Y6: Room Depth
U7: Ceiling Height | V7: 10 | X7: 10 | Y7: Ceiling Height
U8: Number of Vision Windows | V8: 1 | X8: 1 | Y8: Number of Vision Windows
J9: Summary Results | Q9: Surface Properties | U9: Width of each window | V9: 24 | X9: 24 | Y9: Width of each window | AC9: Surface Properties | AJ9: Summary Results
C10: =1-COUNTIF(C20:V39,"<"&minDF)/COUNT(C20:V39) -> 0.46 | J10: ="area above "&TEXT(minDF,"0.0%")&" Daylight Factor" -> area above 1.0% Daylight Factor | P10: Ceiling Reflectance | Q10: 0.8 | U10: Sill - Vision | V10: 0 | X10: 4 | Y10: Sill - Vision | AC10: 0.9 | AD10: Ceiling Reflectance | AJ10: =1-COUNTIF(Y20:AR39,"<"&minDF)/COUNT(Y20:AR39) -> 1 | AK10: ="area above "&TEXT(minDF,"0.0%")&" Daylight Factor" -> area above 1.0% Daylight Factor
C11: =COUNTIF(C20:V39,">"&H17)/COUNT(C20:V39) -> 0 | J11: ="area exceeds max uniformity ratio" -> area exceeds max uniformity ratio | P11: Wall Reflectance | Q11: 0.5 | U11: Head - Vision | V11: 2 | X11: 10 | Y11: Head - Vision | AC11: 0.75 | AD11: Wall Reflectance | AJ11: =COUNTIF(Y20:AR39,">"&AD17)/COUNT(Y20:AR39) -> 0.03 | AK11: ="area exceeds max uniformity ratio" -> area exceeds max uniformity ratio
E12: ='App I-8 Report'!D46 -> 0.1155555556 | J12: window/ floor area ratio | P12: Floor Reflectance | Q12: 0.2 | U12: Number of Clerestoreys | V12: 1 | X12: 0 | Y12: Number of Clerestoreys | AC12: 0.2 | AD12: Floor Reflectance | AJ12: ='App I-8 Report'!N46 -> 0.16 | AK12: window/ floor area ratio
P13: Glass Visible Transmittance | Q13: 0.5 | U13: Width of clerestorey | V13: 28 | X13: 0 | Y13: Width of clerestorey | AC13: 0.7 | AD13: Glass Visible Transmittance
U14: Sill - Clerestorey | V14: 7 | X14: 0 | Y14: Sill - Clerestorey
U15: Head - Clerestorey | V15: 9 | X15: 0 | Y15: Head - Clerestorey
G17: =MIN(C20:V39) -> 0.004611590258 | H17: =G17*maxContrast -> 0.04611590258 | AC17: =MIN(Y20:AR39) -> 0.0177164387 | AD17: =AC17*maxContrast -> 0.177164387
C18: 0.75' | D18: 2.25' | E18: 3.75' | F18: 5.25' | G18: 6.75' | H18: 8.25' | I18: 9.75' | J18: 11.25' | K18: 12.75' | L18: 14.25' | M18: 15.75' | N18: 17.25' | O18: 18.75' | P18: 20.25' | Q18: 21.75' | R18: 23.25' | S18: 24.75' | T18: 26.25' | U18: 27.75' | V18: 29.25' | Y18: 0.75' | Z18: 2.25' | AA18: 3.75' | AB18: 5.25' | AC18: 6.75' | AD18: 8.25' | AE18: 9.75' | AF18: 11.25' | AG18: 12.75' | AH18: 14.25' | AI18: 15.75' | AJ18: 17.25' | AK18: 18.75' | AL18: 20.25' | AM18: 21.75' | AN18: 23.25' | AO18: 24.75' | AP18: 26.25' | AQ18: 27.75' | AR18: 29.25'
L19: W I N D O W W A L L | AH19: W I N D O W W A L L
B20: 0.75' | C20: 0.007398404233 | D20: 0.008889541872 | E20: 0.01662933364 | F20: 0.01787801977 | G20: 0.01815025847 | H20: 0.01827831484 | I20: 0.01834561265 | J20: 0.01838165441 | K20: 0.01840029776 | L20: 0.01840824251 | M20: 0.01840824251 | N20: 0.01840029776 | O20: 0.01838165441 | P20: 0.01834561265 | Q20: 0.01827831484 | R20: 0.01815025847 | S20: 0.01787801977 | T20: 0.01662933364 | U20: 0.008889541872 | V20: 0.007398404233 | X20: 0.75' | Y20: 0.02823107542 | Z20: 0.04324579161 | AA20: 0.06895843957 | AB20: 0.08398449028 | AC20: 0.08976010779 | AD20: 0.09220033374 | AE20: 0.09334572683 | AF20: 0.09391591962 | AG20: 0.09419884751 | AH20: 0.0943170096 | AI20: 0.0943170096 | AJ20: 0.09419884751 | AK20: 0.09391591962 | AL20: 0.09334572683 | AM20: 0.09220033374 | AN20: 0.08976010779 | AO20: 0.08398449028 | AP20: 0.06895843957 | AQ20: 0.04324579161 | AR20: 0.02823107542
B21: 2.25' | C21: 0.01731473362 | D21: 0.02183720651 | E21: 0.02608239551 | F21: 0.0288212448 | G21: 0.0303334795 | H21: 0.03118634491 | I21: 0.03167762713 | J21: 0.03196097206 | K21: 0.0321169137 | L21: 0.03218629488 | M21: 0.03218629488 | N21: 0.0321169137 | O21: 0.03196097206 | P21: 0.03167762713 | Q21: 0.03118634491 | R21: 0.0303334795 | S21: 0.0288212448 | T21: 0.02608239551 | U21: 0.02183720651 | V21: 0.01731473362 | X21: 2.25' | Y21: 0.05524760789 | Z21: 0.08743329698 | AA21: 0.1299890235 | AB21: 0.1621663483 | AC21: 0.1794673431 | AD21: 0.1882056851 | AE21: 0.1927380398 | AF21: 0.1951490712 | AG21: 0.1964032061 | AH21: 0.196942863 | AI21: 0.196942863 | AJ21: 0.1964032061 | AK21: 0.1951490712 | AL21: 0.1927380398 | AM21: 0.1882056851 | AN21: 0.1794673431 | AO21: 0.1621663483 | AP21: 0.1299890235 | AQ21: 0.08743329698 | AR21: 0.05524760789
B22: 3.75' | C22: 0.0221152433 | D22: 0.02719270733 | E22: 0.03170948768 | F22: 0.03499250833 | G22: 0.03712926941 | H22: 0.03845709718 | I22: 0.03926873889 | J22: 0.03975569851 | K22: 0.04003076686 | L22: 0.04015500294 | M22: 0.04015500294 | N22: 0.04003076686 | O22: 0.03975569851 | P22: 0.03926873889 | Q22: 0.03845709718 | R22: 0.03712926941 | S22: 0.03499250833 | T22: 0.03170948768 | U22: 0.02719270733 | V22: 0.0221152433 | X22: 3.75' | Y22: 0.05913791648 | Z22: 0.08285829421 | AA22: 0.1105202599 | AB22: 0.134217628 | AC22: 0.1502095201 | AD22: 0.1598379793 | AE22: 0.1654256304 | AF22: 0.1686145712 | AG22: 0.1703466461 | AH22: 0.1711098857 | AI22: 0.1711098857 | AJ22: 0.1703466461 | AK22: 0.1686145712 | AL22: 0.1654256304 | AM22: 0.1598379793 | AN22: 0.1502095201 | AO22: 0.134217628 | AP22: 0.1105202599 | AQ22: 0.08285829421 | AR22: 0.05913791648
B23: 5.25' | C23: 0.02087287697 | D23: 0.02486823729 | E23: 0.02845346139 | F23: 0.03130469869 | G23: 0.03332334015 | H23: 0.03467514689 | I23: 0.03555051827 | J23: 0.0360981064 | K23: 0.03641624835 | L23: 0.03656229213 | M23: 0.03656229213 | N23: 0.03641624835 | O23: 0.0360981064 | P23: 0.03555051827 | Q23: 0.03467514689 | R23: 0.03332334015 | S23: 0.03130469869 | T23: 0.02845346139 | U23: 0.02486823729 | V23: 0.02087287697 | X23: 5.25' | Y23: 0.05370829504 | Z23: 0.06896404036 | AA23: 0.08576587649 | AB23: 0.1009889844 | AC23: 0.1126373029 | AD23: 0.1206084066 | AE23: 0.1257260706 | AF23: 0.1288639557 | AG23: 0.1306504373 | AH23: 0.1314588997 | AI23: 0.1314588997 | AJ23: 0.1306504373 | AK23: 0.1288639557 | AL23: 0.1257260706 | AM23: 0.1206084066 | AN23: 0.1126373029 | AO23: 0.1009889844 | AP23: 0.08576587649 | AQ23: 0.06896404036 | AR23: 0.05370829504
B24: 6.75' | C24: 0.01779696023 | D24: 0.02060777021 | E24: 0.02302094727 | F24: 0.02516470803 | G24: 0.02678355822 | H24: 0.02793773597 | I24: 0.02872583247 | J24: 0.02923937991 | K24: 0.0295463873 | L24: 0.02968970924 | M24: 0.02968970924 | N24: 0.0295463873 | O24: 0.02923937991 | P24: 0.02872583247 | Q24: 0.02793773597 | R24: 0.02678355822 | S24: 0.02516470803 | T24: 0.02302094727 | U24: 0.02060777021 | V24: 0.01779696023 | X24: 6.75' | Y24: 0.04661043158 | Z24: 0.05629414643 | AA24: 0.06663808805 | AB24: 0.07628373889 | AC24: 0.08421899135 | AD24: 0.09013988451 | AE24: 0.09425376226 | AF24: 0.09693865237 | AG24: 0.0985358186 | AH24: 0.09927752399 | AI24: 0.09927752399 | AJ24: 0.0985358186 | AK24: 0.09693865237 | AL24: 0.09425376226 | AM24: 0.09013988451 | AN24: 0.08421899135 | AO24: 0.07628373889 | AP24: 0.06663808805 | AQ24: 0.05629414643 | AR24: 0.04661043158
B25: 8.25' | C25: 0.01488240441 | D25: 0.01678589291 | E25: 0.0183244356 | F25: 0.01985503237 | G25: 0.02106977476 | H25: 0.02198103794 | I25: 0.0226322474 | J25: 0.02307247207 | K25: 0.02334272487 | L25: 0.02347091723 | M25: 0.02347091723 | N25: 0.02334272487 | O25: 0.02307247207 | P25: 0.0226322474 | Q25: 0.02198103794 | R25: 0.02106977476 | S25: 0.01985503237 | T25: 0.0183244356 | U25: 0.01678589291 | V25: 0.01488240441 | X25: 8.25' | Y25: 0.04031816258 | Z25: 0.04656723685 | AA25: 0.05311757648 | AB25: 0.05932643434 | AC25: 0.06466637331 | AD25: 0.06888926316 | AE25: 0.07199949336 | AF25: 0.0741329875 | AG25: 0.07545001698 | AH25: 0.0760755909 | AI25: 0.0760755909 | AJ25: 0.07545001698 | AK25: 0.0741329875 | AL25: 0.07199949336 | AM25: 0.06888926316 | AN25: 0.06466637331 | AO25: 0.05932643434 | AP25: 0.05311757648 | AQ25: 0.04656723685 | AR25: 0.04031816258
B26: 9.75' | C26: 0.01257456821 | D26: 0.01386687482 | E26: 0.01481810832 | F26: 0.01589820939 | G26: 0.01678813602 | H26: 0.01748289167 | I26: 0.0179981829 | J26: 0.01835752477 | K26: 0.01858327648 | L26: 0.01869188386 | M26: 0.01869188386 | N26: 0.01858327648 | O26: 0.01835752477 | P26: 0.0179981829 | Q26: 0.01748289167 | R26: 0.01678813602 | S26: 0.01589820939 | T26: 0.01481810832 | U26: 0.01386687482 | V26: 0.01257456821 | X26: 9.75' | Y26: 0.03530182178 | Z26: 0.03943156744 | AA26: 0.04370425557 | AB26: 0.04779407664 | AC26: 0.05141311615 | AD26: 0.0543901185 | AE26: 0.05667667563 | AF26: 0.05830560015 | AG26: 0.05934106295 | AH26: 0.05984201202 | AI26: 0.05984201202 | AJ26: 0.05934106295 | AK26: 0.05830560015 | AL26: 0.05667667563 | AM26: 0.0543901185 | AN26: 0.05141311615 | AO26: 0.04779407664 | AP26: 0.04370425557 | AQ26: 0.03943156744 | AR26: 0.03530182178
B27: 11.25' | C27: 0.01083035661 | D27: 0.01172189938 | E27: 0.01228992985 | F27: 0.01305560022 | G27: 0.01370423438 | H27: 0.01422630274 | I27: 0.01462504142 | J27: 0.01491020718 | K27: 0.01509282189 | L27: 0.01518172737 | M27: 0.01518172737 | N27: 0.01509282189 | O27: 0.01491020718 | P27: 0.01462504142 | Q27: 0.01422630274 | R27: 0.01370423438 | S27: 0.01305560022 | T27: 0.01228992985 | U27: 0.01172189938 | V27: 0.01083035661 | X27: 11.25' | Y27: 0.03143044442 | Z27: 0.03422423284 | AA27: 0.03708616747 | AB27: 0.03984207875 | AC27: 0.0423269658 | AD27: 0.0444268575 | AE27: 0.04608857372 | AF27: 0.04730584195 | AG27: 0.04809704998 | AH27: 0.04848532026 | AI27: 0.04848532026 | AJ27: 0.04809704998 | AK27: 0.04730584195 | AL27: 0.04608857372 | AM27: 0.0444268575 | AN27: 0.0423269658 | AO27: 0.03984207875 | AP27: 0.03708616747 | AQ27: 0.03422423284 | AR27: 0.03143044442
B28: 12.75' | C28: 0.009517105268 | D28: 0.01014402241 | E28: 0.01046223229 | F28: 0.01101067296 | G28: 0.01148487773 | H28: 0.01187542528 | I28: 0.01218053776 | J28: 0.01240312332 | K28: 0.01254786617 | L28: 0.01261901639 | M28: 0.01261901639 | N28: 0.01254786617 | O28: 0.01240312332 | P28: 0.01218053776 | Q28: 0.01187542528 | R28: 0.01148487773 | S28: 0.01101067296 | T28: 0.01046223229 | U28: 0.01014402241 | V28: 0.009517105268 | X28: 12.75' | Y28: 0.02846952754 | Z28: 0.03039989001 | AA28: 0.03236122338 | AB28: 0.03425689351 | AC28: 0.03598789389 | AD28: 0.03747815167 | AE28: 0.03868259886 | AF28: 0.03958291671 | AG28: 0.0401778323 | AH28: 0.04047291331 | AI28: 0.04047291331 | AJ28: 0.0401778323 | AK28: 0.03958291671 | AL28: 0.03868259886 | AM28: 0.03747815167 | AN28: 0.03598789389 | AO28: 0.03425689351 | AP28: 0.03236122338 | AQ28: 0.03039989001 | AR28: 0.02846952754
B29: 14.25' | C29: 0.008516371823 | D29: 0.008965277593 | E29: 0.009119276352 | F29: 0.009516721657 | G29: 0.009865555056 | H29: 0.01015781619 | I29: 0.0103900989 | J29: 0.01056217088 | K29: 0.01067541525 | L29: 0.01073150677 | M29: 0.01073150677 | N29: 0.01067541525 | O29: 0.01056217088 | P29: 0.0103900989 | Q29: 0.01015781619 | R29: 0.009865555056 | S29: 0.009516721657 | T29: 0.009119276352 | U29: 0.008965277593 | V29: 0.008516371823 | X29: 14.25' | Y29: 0.02622264351 | Z29: 0.02758399187 | AA29: 0.02895722186 | AB29: 0.03028758737 | AC29: 0.03151305227 | AD29: 0.03258185647 | AE29: 0.03345868088 | AF29: 0.03412369352 | AG29: 0.03456842843 | AH29: 0.03479076047 | AI29: 0.03479076047 | AJ29: 0.03456842843 | AK29: 0.03412369352 | AL29: 0.03345868088 | AM29: 0.03258185647 | AN29: 0.03151305227 | AO29: 0.03028758737 | AP29: 0.02895722186 | AQ29: 0.02758399187 | AR29: 0.02622264351
B30: 15.75' | C30: 0.007740055162 | D30: 0.008066579459 | E30: 0.008111625152 | F30: 0.008402796793 | G30: 0.008661173555 | H30: 0.008880419478 | I30: 0.009056936024 | J30: 0.009189230546 | K30: 0.009277101819 | L30: 0.00932088229 | M30: 0.00932088229 | N30: 0.009277101819 | O30: 0.009189230546 | P30: 0.009056936024 | Q30: 0.008880419478 | R30: 0.008661173555 | S30: 0.008402796793 | T30: 0.008111625152 | U30: 0.008066579459 | V30: 0.007740055162 | X30: 15.75' | Y30: 0.02445234251 | Z30: 0.02542200775 | AA30: 0.02639355478 | AB30: 0.02733639724 | AC30: 0.02821045064 | AD30: 0.02897987783 | AE30: 0.02961788718 | AF30: 0.03010686283 | AG30: 0.03043672823 | AH30: 0.03060258254 | AI30: 0.03060258254 | AJ30: 0.03043672823 | AK30: 0.03010686283 | AL30: 0.02961788718 | AM30: 0.02897987783 | AN30: 0.02821045064 | AO30: 0.02733639724 | AP30: 0.02639355478 | AQ30: 0.02542200775 | AR30: 0.02445234251
B31: 17.25' | C31: 0.007125905059 | D31: 0.007366456443 | E31: 0.007338724751 | F31: 0.007554003502 | G31: 0.007746584911 | H31: 0.007911550502 | I31: 0.008045655489 | J31: 0.008147051698 | K31: 0.008214872719 | L31: 0.008248815434 | M31: 0.008248815434 | N31: 0.008214872719 | O31: 0.008147051698 | P31: 0.008045655489 | Q31: 0.007911550502 | R31: 0.007746584911 | S31: 0.007554003502 | T31: 0.007338724751 | U31: 0.007366456443 | V31: 0.007125905059 | X31: 17.25' | Y31: 0.02304148797 | Z31: 0.02373541086 | AA31: 0.02442607812 | AB31: 0.02509749747 | AC31: 0.02572315843 | AD31: 0.02627781101 | AE31: 0.02674138327 | AF31: 0.02709940904 | AG31: 0.02734248103 | AH31: 0.02746521128 | AI31: 0.02746521128 | AJ31: 0.02734248103 | AK31: 0.02709940904 | AL31: 0.02674138327 | AM31: 0.02627781101 | AN31: 0.02572315843 | AO31: 0.02509749747 | AP31: 0.02442607812 | AQ31: 0.02373541086 | AR31: 0.02304148797
B32: 18.75' | C32: 0.006630407195 | D32: 0.006809333839 | E32: 0.006732899534 | F32: 0.006893179014 | G32: 0.007037430691 | H32: 0.007161873672 | I32: 0.007263773552 | J32: 0.007341332208 | K32: 0.007393484267 | L32: 0.007419674098 | M32: 0.007419674098 | N32: 0.007393484267 | O32: 0.007341332208 | P32: 0.007263773552 | Q32: 0.007161873672 | R32: 0.007037430691 | S32: 0.006893179014 | T32: 0.006732899534 | U32: 0.006809333839 | V32: 0.006630407195 | X32: 18.75' | Y32: 0.02190339296 | Z32: 0.022399257 | AA32: 0.02288940692 | AB32: 0.02336703396 | AC32: 0.0238143315 | AD32: 0.0242132198 | AE32: 0.02454871043 | AF32: 0.02480936008 | AG32: 0.02498718437 | AH32: 0.02507725678 | AI32: 0.02507725678 | AJ32: 0.02498718437 | AK32: 0.02480936008 | AL32: 0.02454871043 | AM32: 0.0242132198 | AN32: 0.0238143315 | AO32: 0.02336703396 | AP32: 0.02288940692 | AQ32: 0.022399257 | AR32: 0.02190339296
B33: 20.25' | C33: 0.006222993015 | D33: 0.006356932178 | E33: 0.006248073514 | F33: 0.006367932153 | G33: 0.006476315145 | H33: 0.006570323231 | I33: 0.006647728597 | J33: 0.006706941927 | K33: 0.006746918942 | L33: 0.006767046829 | M33: 0.006767046829 | N33: 0.006746918942 | O33: 0.006706941927 | P33: 0.006647728597 | Q33: 0.006570323231 | R33: 0.006476315145 | S33: 0.006367932153 | T33: 0.006248073514 | U33: 0.006356932178 | V33: 0.006222993015 | X33: 20.25' | Y33: 0.02097082152 | Z33: 0.02132521106 | AA33: 0.0216695839 | AB33: 0.0220064637 | AC33: 0.02232380482 | AD33: 0.02260847361 | AE33: 0.02284926378 | AF33: 0.02303729196 | AG33: 0.02316609005 | AH33: 0.0232314992 | AI33: 0.0232314992 | AJ33: 0.02316609005 | AK33: 0.02303729196 | AL33: 0.02284926378 | AM33: 0.02260847361 | AN33: 0.02232380482 | AO33: 0.0220064637 | AP33: 0.0216695839 | AQ33: 0.02132521106 | AR33: 0.02097082152
B34: 21.75' | C34: 0.005881941928 | D34: 0.005982495537 | E34: 0.0058523755 | F34: 0.005942136936 | G34: 0.006023625763 | H34: 0.006094616018 | I34: 0.006153324685 | J34: 0.006198413017 | K34: 0.00622894927 | L34: 0.006244354826 | M34: 0.006244354826 | N34: 0.00622894927 | O34: 0.006198413017 | P34: 0.006153324685 | Q34: 0.006094616018 | R34: 0.006023625763 | S34: 0.005942136936 | T34: 0.0058523755 | U34: 0.005982495537 | V34: 0.005881941928 | X34: 21.75' | Y34: 0.02017930374 | Z34: 0.0204310588 | AA34: 0.02067575139 | AB34: 0.02091649359 | AC34: 0.02114113242 | AD34: 0.02134113657 | AE34: 0.02151135576 | AF34: 0.0216449561 | AG34: 0.02173682527 | AH34: 0.02178359312 | AI34: 0.02178359312 | AJ34: 0.02173682527 | AK34: 0.0216449561 | AL34: 0.02151135576 | AM34: 0.02134113657 | AN34: 0.02114113242 | AO34: 0.02091649359 | AP34: 0.02067575139 | AQ34: 0.0204310588 | AR34: 0.02017930374
B35: 23.25' | C35: 0.005591604393 | D35: 0.005667015796 | E35: 0.005523379856 | F35: 0.005590459818 | G35: 0.005651583691 | H35: 0.005705037053 | I35: 0.005749406098 | J35: 0.005783592691 | K35: 0.005806804832 | L35: 0.005818534425 | M35: 0.005818534425 | N35: 0.005806804832 | O35: 0.005783592691 | P35: 0.005749406098 | Q35: 0.005705037053 | R35: 0.005651583691 | S35: 0.005590459818 | T35: 0.005523379856 | U35: 0.005667015796 | V35: 0.005591604393 | X35: 23.25' | Y35: 0.01952099931 | Z35: 0.019691174 | AA35: 0.01985466025 | AB35: 0.02001737293 | AC35: 0.0201738256 | AD35: 0.02031673057 | AE35: 0.0204396453 | AF35: 0.02053503899 | AG35: 0.02059896858 | AH35: 0.02063160115 | AI35: 0.02063160115 | AJ35: 0.02059896858 | AK35: 0.02053503899 | AL35: 0.0204396453 | AM35: 0.02031673057 | AN35: 0.0201738256 | AO35: 0.02001737293 | AP35: 0.01985466025 | AQ35: 0.019691174 | AR35: 0.01952099931
B36: 24.75' | C36: 0.005340539897 | D36: 0.005396766468 | E36: 0.005245037636 | F36: 0.005294834871 | G36: 0.005340392464 | H36: 0.005380384486 | I36: 0.00541369478 | J36: 0.005439436091 | K36: 0.005456953394 | L36: 0.005465817795 | M36: 0.005465817795 | N36: 0.005456953394 | O36: 0.005439436091 | P36: 0.00541369478 | Q36: 0.005380384486 | R36: 0.005340392464 | S36: 0.005294834871 | T36: 0.005245037636 | U36: 0.005396766468 | V36: 0.005340539897 | X36: 24.75' | Y36: 0.0189673633 | Z36: 0.01907525055 | AA36: 0.01917705422 | AB36: 0.01928067278 | AC36: 0.01938257567 | AD36: 0.01947728063 | AE36: 0.01955990206 | AF36: 0.01962634634 | AG36: 0.01967344641 | AH36: 0.01969853194 | AI36: 0.01969853194 | AJ36: 0.01967344641 | AK36: 0.01962634634 | AL36: 0.01955990206 | AM36: 0.01947728063 | AN36: 0.01938257567 | AO36: 0.01928067278 | AP36: 0.01917705422 | AQ36: 0.01907525055 | AR36: 0.0189673633
B37: 26.25' | C37: 0.00512026445 | D37: 0.005161678049 | E37: 0.005005676491 | F37: 0.005042170445 | G37: 0.00507572356 | H37: 0.005105305577 | I37: 0.005130036508 | J37: 0.005149205501 | K37: 0.005162279406 | L37: 0.005168904398 | M37: 0.005168904398 | N37: 0.005162279406 | O37: 0.005149205501 | P37: 0.005130036508 | Q37: 0.005105305577 | R37: 0.00507572356 | S37: 0.005042170445 | T37: 0.005005676491 | U37: 0.005161678049 | V37: 0.00512026445 | X37: 26.25' | Y37: 0.01849711275 | Z37: 0.0185566561 | AA37: 0.01861088993 | AB37: 0.01866900413 | AC37: 0.01872874624 | AD37: 0.0187858308 | AE37: 0.01883642763 | AF37: 0.01887731547 | AG37: 0.01890599532 | AH37: 0.01892076553 | AI37: 0.01892076553 | AJ37: 0.01890599532 | AK37: 0.01887731547 | AL37: 0.01883642763 | AM37: 0.0187858308 | AN37: 0.01872874624 | AO37: 0.01866900413 | AP37: 0.01861088993 | AQ37: 0.0185566561 | AR37: 0.01849711275
B38: 27.75' | C38: 0.004924400126 | D38: 0.004954253726 | E38: 0.004796678199 | F38: 0.004822835885 | G38: 0.004847053354 | H38: 0.004868526156 | I38: 0.004886560084 | J38: 0.004900588041 | K38: 0.004910180052 | L38: 0.004915048148 | M38: 0.004915048148 | N38: 0.004910180052 | O38: 0.004900588041 | P38: 0.004886560084 | Q38: 0.004868526156 | R38: 0.004847053354 | S38: 0.004822835885 | T38: 0.004796678199 | U38: 0.004954253726 | V38: 0.004924400126 | X38: 27.75' | Y38: 0.01809477289 | Z38: 0.01811563685 | AA38: 0.01813189866 | AB38: 0.01815383676 | AC38: 0.01818027177 | AD38: 0.01820792466 | AE38: 0.01823385659 | AF38: 0.01825558553 | AG38: 0.01827117697 | AH38: 0.01827930814 | AI38: 0.01827930814 | AJ38: 0.01827117697 | AK38: 0.01825558553 | AL38: 0.01823385659 | AM38: 0.01820792466 | AN38: 0.01818027177 | AO38: 0.01815383676 | AP38: 0.01813189866 | AQ38: 0.01811563685 | AR38: 0.01809477289
B39: 29.25' | C39: 0.004748090476 | D39: 0.004768834898 | E39: 0.004611590258 | F39: 0.004629647248 | G39: 0.004646546836 | H39: 0.004661657731 | I39: 0.004674431265 | J39: 0.004684415725 | K39: 0.004691266042 | L39: 0.004694749661 | M39: 0.004694749661 | N39: 0.004691266042 | O39: 0.004684415725 | P39: 0.004674431265 | Q39: 0.004661657731 | R39: 0.004646546836 | S39: 0.004629647248 | T39: 0.004611590258 | U39: 0.004768834898 | V39: 0.004748090476 | X39: 29.25' | Y39: 0.01774564617 | Z39: 0.01773612491 | AA39: 0.01772269319 | AB39: 0.0177164387 | AC39: 0.01771697748 | AD39: 0.0177217797 | AE39: 0.01772857562 | AF39: 0.01773544403 | AG39: 0.01774088346 | AH39: 0.01774386465 | AI39: 0.01774386465 | AJ39: 0.01774088346 | AK39: 0.01773544403 | AL39: 0.01772857562 | AM39: 0.0177217797 | AN39: 0.01771697748 | AO39: 0.0177164387 | AP39: 0.01772269319 | AQ39: 0.01773612491 | AR39: 0.01774564617
V40: =AVERAGE(C20:V39) -> 0.01354402129 | AR40: =AVERAGE(Y20:AR39) -> 0.04994072182
E42: Greater than Max Uniformity | K42: Daylight factor and uniformity ok | Q42: Less than Min daylight factor | AA42: Greater than Max Uniformity | AG42: Daylight factor and uniformity ok | AM42: Less than Min daylight factor
F44: >20% | I44: 10-20% | L44: 7-10% | O44: 4-7% | R44: 2-4% | AB44: >20% | AE44: 10-20% | AH44: 7-10% | AK44: 4-7% | AN44: 2-4%
F45: 1-2% | I45: 0.5-1% | L45: 0.2-5% | O45: 0.1-0.2% | R45: <0.1% | AB45: 1-2% | AE45: 0.5-1% | AH45: 0.2-5% | AK45: 0.1-0.2% | AN45: <0.1%

Sheet App I-8 Report
A1: Appendix I-8: Daylighting Factor Calculator Report
A2: B3 Guidelines - Version 3.0
A4: PROJECT NAME
A5: Room (Name/ Number/ Other details)
A6: Alternative 1 | K6: Alternative 2
D7: Minimum Daylight Factor Required | E7: =minDF -> 0.01 | N7: Minimum Daylight Factor Required | O7: =minDF -> 0.01
D8: Max Uniformity Ratio Allowed | E8: =maxContrast -> 10 | N8: Max Uniformity Ratio Allowed | O8: =maxContrast -> 10
E9: =Tool!C10 -> 0.46 | F9: ="area achieves "&TEXT(minDF,"0.0%")&" Daylight Factor" -> area achieves 1.0% Daylight Factor | O9: =Tool!AJ10 -> 1 | P9: ="area achieves "&TEXT(minDF,"0.0%")&" Daylight Factor" -> area achieves 1.0% Daylight Factor
E10: =Tool!C11 -> 0 | F10: ="area exceeds Max Uniformity Ratio" -> area exceeds Max Uniformity Ratio | O10: =Tool!AJ11 -> 0.03 | P10: ="area exceeds Max Uniformity Ratio" -> area exceeds Max Uniformity Ratio
A11: Minimum daylight factor Achieved | E11: =MIN(Tool!$C$20:$V$39) -> 0.004611590258 | F11: Maximum daylight factor achieved | J11: =MAX(Tool!$C$20:$V$39) -> 0.04015500294 | K11: Minimum daylight factor Achieved | O11: =MIN(Tool!$Y$20:$AR$39) -> 0.0177164387 | P11: Maximum daylight factor achieved | T11: =MAX(Tool!$Y$20:$AR$39) -> 0.196942863
A12: Design Ambient Illuminance | E12: 50 | F12: fc | K12: Design Ambient Illuminance | O12: 50 | P12: fc
A13: On an overcast day in each month the average daylighting is predicted to be: | K13: On an overcast day in each month the average daylighting is predicted to be:
A14: Month | B14: Average Daylight FC* | C14: % of Amb. Illum. | E14: Overcast days in month** | K14: Month | L14: Average Daylight FC* | M14: % of Amb. Illum. | O14: Overcast days in month**
A15: Jan | B15: =VLOOKUP(A15,avgIlumTbl,2,FALSE)*alt1AvgDF/10.76 -> 8.141237912 | C15: =B15/$E$12 -> 0.1628247582 | E15: 0.4838709677 | K15: Jan | L15: =VLOOKUP(K15,avgIlumTbl,2,FALSE)*alt2AvgDF/10.76 -> 30.01909766 | M15: =L15/$O$12 -> 0.6003819531 | O15: 0.4838709677
A16: Feb | B16: 9.716313348 | C16: 0.194326267 | E16: 0.5 | K16: Feb | L16: 35.82685611 | M16: =L16/$O$12 -> 0.7165371223 | O16: 0.5
A17: Mar | B17: 13.7808929 | C17: 0.2756178581 | E17: 0.5483870968 | K17: Mar | L17: 50.81413593 | M17: 1.016282719 | O17: 0.5483870968
A18: Apr | B18: 15.95595703 | C18: 0.3191191405 | E18: 0.5 | K18: Apr | L18: 58.83422611 | M18: 1.176684522 | O18: 0.5
A19: May | B19: 16.69338386 | C19: 0.3338676773 | E19: 0.4838709677 | K19: May | L19: 61.55333204 | M19: 1.231066641 | O19: 0.4838709677
A20: Jun | B20: 17.91687724 | C20: 0.3583375447 | E20: 0.4 | K20: Jun | L20: 66.0647058 | M20: 1.321294116 | O20: 0.4
A21: Jul | B21: 16.83688 | C21: 0.3367376 | E21: 0.2903225806 | K21: Jul | L21: 62.08244378 | M21: 1.241648876 | O21: 0.2903225806
A22: Aug | B22: 16.07214823 | C22: 0.3214429646 | E22: 0.3225806452 | K22: Aug | L22: 59.26265667 | M22: 1.185253133 | O22: 0.3225806452
A23: Sep | B23: 11.82729626 | C23: 0.2365459252 | E23: 0.4 | K23: Sep | L23: 43.61066035 | M23: 0.8722132071 | O23: 0.4
A24: Oct | B24: 9.574419242 | C24: 0.1914883848 | E24: 0.4516129032 | K24: Oct | L24: 35.30365153 | M24: 0.7060730305 | O24: 0.4516129032
A25: Nov | B25: 8.067112228 | C25: 0.1613422446 | E25: 0.6 | K25: Nov | L25: 29.74577483 | M25: 0.5949154966 | O25: 0.6
A26: Dec | B26: 6.819562972 | C26: 0.1363912594 | E26: 0.5806451613 | K26: Dec | L26: 25.14570008 | M26: 0.5029140016 | O26: 0.5806451613
A28: Summary of Inputs | K28: Summary of Inputs
A29: Geometry | F29: Surface Properties | K29: Geometry | P29: Surface Properties
A30: =Tool!U5 -> Room Width | D30: =Tool!V5 -> 30 | E30: ' | F30: =Tool!P10 -> Ceiling Reflectance | I30: =Tool!Q10 -> 0.8 | K30: =Tool!Y5 -> Room Width | N30: =Tool!X5 -> 30 | O30: ' | P30: =Tool!AD10 -> Ceiling Reflectance | S30: =Tool!AC10 -> 0.9
A31: =Tool!U6 -> Room Depth | D31: =Tool!V6 -> 30 | E31: ' | F31: =Tool!P11 -> Wall Reflectance | I31: =Tool!Q11 -> 0.5 | K31: =Tool!Y6 -> Room Depth | N31: =Tool!X6 -> 30 | O31: ' | P31: =Tool!AD11 -> Wall Reflectance | S31: =Tool!AC11 -> 0.75
A32: =Tool!U7 -> Ceiling Height | D32: =Tool!V7 -> 10 | E32: ' | F32: =Tool!P12 -> Floor Reflectance | I32: =Tool!Q12 -> 0.2 | K32: =Tool!Y7 -> Ceiling Height | N32: =Tool!X7 -> 10 | O32: ' | P32: =Tool!AD12 -> Floor Reflectance | S32: =Tool!AC12 -> 0.2
A33: =Tool!U8 -> Number of Vision Windows | D33: =Tool!V8 -> 1 | F33: =Tool!P13 -> Glass Visible Transmittance | I33: =Tool!Q13 -> 0.5 | K33: =Tool!Y8 -> Number of Vision Windows | N33: =Tool!X8 -> 1 | P33: =Tool!AD13 -> Glass Visible Transmittance | S33: =Tool!AC13 -> 0.7
A34: =Tool!U9 -> Width of each window | D34: =Tool!V9 -> 24 | E34: ' | K34: =Tool!Y9 -> Width of each window | N34: =Tool!X9 -> 24 | O34: '
A35: =Tool!U10 -> Sill - Vision | D35: =Tool!V10 -> 0 | E35: ' | K35: =Tool!Y10 -> Sill - Vision | N35: =Tool!X10 -> 4 | O35: '
A36: =Tool!U11 -> Head - Vision | D36: =Tool!V11 -> 2 | E36: ' | K36: =Tool!Y11 -> Head - Vision | N36: =Tool!X11 -> 10 | O36: '
A37: =Tool!U12 -> Number of Clerestoreys | D37: =Tool!V12 -> 1 | K37: =Tool!Y12 -> Number of Clerestoreys | N37: =Tool!X12 -> 0
A38: =Tool!U13 -> Width of clerestorey | D38: =Tool!V13 -> 28 | K38: =Tool!Y13 -> Width of clerestorey | N38: =Tool!X13 -> 0
A39: =Tool!U14 -> Sill - Clerestorey | D39: =Tool!V14 -> 7 | E39: ' | K39: =Tool!Y14 -> Sill - Clerestorey | N39: =Tool!X14 -> 0 | O39: '
A40: =Tool!U15 -> Head - Clerestorey | D40: =Tool!V15 -> 9 | E40: ' | K40: =Tool!Y15 -> Head - Clerestorey | N40: =Tool!X15 -> 0 | O40: '
A42: Summary Geometry Information | K42: Summary Geometry Information
A43: Exterior Wall Area | D43: =D30*D32 -> 300 | E43: sf | K43: Exterior Wall Area | N43: =N30*N32 -> 300 | O43: sf
A44: Window Area | D44: =D33*D34*(D36-D35)+D37*D38*(D40-D39) -> 104 | E44: sf | K44: Window Area | N44: =N33*N34*(N36-N35)+N37*N38*(N40-N39) -> 144 | O44: sf
A45: Floor Area | D45: =D31*D30 -> 900 | E45: sf | K45: Floor Area | N45: =N31*N30 -> 900 | O45: sf
A46: Window/ Floor Area | D46: =D44/D45 -> 0.1155555556 | K46: Window/ Floor Area | N46: =N44/N45 -> 0.16
A48: *Based on overcast day sky data by Claude Robbins 1986 | F48: **Source - NOAA | T48: © The Weidt Group 2011

Sheet App I-8 Summary Form
A1: Appendix I-8: Daylighting Factor Calculator Summary Form
A2: B3 Guidelines - Version 3.0
A4: Project Name:
A5: Overall continuously occupied spaces that achieve the minimum daylight factor | F5: =SUMPRODUCT(C9:C65537,D9:D65537)/IF(SUM(C9:C65537) <> 0, SUM(C9:C65537), 1) -> 0
A7: List all the continuously occupied spaces below and enter results from the Tool Sheet
A8: Room Name | B8: Room Number | C8: Room Area | D8: % Area above min Daylight Factor | E8: % Area exceeding Uniformity Ratio | F8: % Window to Wall Ratio

Sheet Interface (hidden)
D4: DF for color | E4: 0.01
D5: Uniformity Ratio for Color | E5: 10
D6: Z point for calculation grid | E6: 2.5
E12: Alternative 1 | F12: Alternative 2
C13: Room | D13: Room Dimensions | E13: =COLUMN()-COLUMN($C13)+1 -> 3 | F13: =COLUMN()-COLUMN($C13)+1 -> 4
C14: Room Width | D14: Width | E14: =Tool!V5 -> 30 | F14: =Tool!X5 -> 30
C15: Room depth | D15: Depth | E15: =Tool!V6 -> 30 | F15: =Tool!X6 -> 30
C16: Ceiling Ht | D16: Ceiling Height | E16: =Tool!V7 -> 10 | F16: =Tool!X7 -> 10
C17: wall thickness | E17: 0.75 | F17: 0.75
C18: PartitionHt | D18: Partition Height | E18: 5 | F18: 5
C19: Windows | D19: Windows
C20: Nwin | D20: Number of Windows | E20: =Tool!V8 -> 1 | F20: =Tool!X8 -> 1
C21: Wwin | D21: Width of each window | E21: =Tool!V9 -> 24 | F21: =Tool!X9 -> 24
C22: ClearStorey | D22: Clerestorey? | E22: =IF(AND(E28>E27,E27>0),"y","n") -> y | F22: =IF(AND(F28>F27,F27>0),"y","n") -> n
C23: SillVision | D23: Sill Height | E23: =Tool!V10 -> 0 | F23: =Tool!X10 -> 4
C24: HeadVision | D24: Head Height | E24: =Tool!V11 -> 2 | F24: =Tool!X11 -> 10
C25: NClr | D25: Number of Clerestoreys | E25: =Tool!V12 -> 1 | F25: =Tool!X12 -> 0
C26: WClr | D26: Width of Clerestorey | E26: =Tool!V13 -> 28 | F26: =Tool!X13 -> 0
C27: SillClr | D27: Sill Height | E27: =Tool!V14 -> 7 | F27: =Tool!X14 -> 0
C28: HeadClr | D28: Head Height | E28: =Tool!V15 -> 9 | F28: =Tool!X15 -> 0
C29: .
C30: ClgRefl | D30: Ceiling | E30: =Tool!Q10 -> 0.8 | F30: =Tool!AC10 -> 0.9
C31: WallRefl | D31: Wall | E31: =Tool!Q11 -> 0.5 | F31: =Tool!AC11 -> 0.75
C32: FlrRefl | D32: Floor | E32: =Tool!Q12 -> 0.2 | F32: =Tool!AC12 -> 0.2
C33: Tvis | D33: Visible Transmittance | E33: =Tool!Q13 -> 0.5 | F33: =Tool!AC13 -> 0.7
C36: Checks
D37: Spandrel Width | E37: =(E14-E20*E21)/(E20+1) -> 3 | F37: =(F14-F20*F21)/(F20+1) -> 3
D38: WinFitVert | E38: =E16-MAX(E24,E28) -> 1 | F38: =F16-MAX(F24,F28) -> 0
D39: WinIntersectVert | E39: =IF(E27=0,0,E27-E24) -> 5 | F39: =IF(F27=0,0,F27-F24) -> 0

Sheet Calcs (hidden)
B2: Room Width | C2: =VLOOKUP(B2,inputTbl,HLOOKUP($B$7&$C$7,inputTbl,2,FALSE),FALSE) -> 30 | H2: Nwin | I2: =VLOOKUP(H2,inputTbl,HLOOKUP($B$7&$C$7,inputTbl,2,FALSE),FALSE) -> 1 | O2: ReftPtHt | P2: =Interface!E6 -> 2.5 | S2: Ext Obst Ht | T2: 7.5 | W2: ClgRefl | X2: =VLOOKUP(W2,inputTbl,HLOOKUP($B$7&$C$7,inputTbl,2,FALSE),FALSE) -> 0.9
B3: Room depth | C3: =VLOOKUP(B3,inputTbl,HLOOKUP($B$7&$C$7,inputTbl,2,FALSE),FALSE) -> 30 | H3: Wwin | I3: 24 | O3: RefPtX | P3: =HLOOKUP(xPosition,gridXtbl,2,FALSE) -> 29.25 | S3: Ext Obst Dist | T3: 50 | W3: WallRefl | X3: =VLOOKUP(W3,inputTbl,HLOOKUP($B$7&$C$7,inputTbl,2,FALSE),FALSE) -> 0.75
B4: Ceiling Ht | C4: =VLOOKUP(B4,inputTbl,HLOOKUP($B$7&$C$7,inputTbl,2,FALSE),FALSE) -> 10 | H4: ClearStorey | I4: n | O4: RefPtDepth | P4: =VLOOKUP(yPosition,gridYtbl,2,FALSE) -> 29.25 | S4: Avg Ext Obstruction Refl | T4: 0.1 | W4: FlrRefl | X4: =VLOOKUP(W4,inputTbl,HLOOKUP($B$7&$C$7,inputTbl,2,FALSE),FALSE) -> 0.2
B5: wall thickness | C5: =VLOOKUP(B5,inputTbl,HLOOKUP($B$7&$C$7,inputTbl,2,FALSE),FALSE) -> 0.75 | H5: SillVision | I5: 4 | O5: Now X Position | P5: 20 | W5: Tvis | X5: =VLOOKUP(W5,inputTbl,HLOOKUP($B$7&$C$7,inputTbl,2,FALSE),FALSE) -> 0.7
B6: PartitionHt | C6: =VLOOKUP(B6,inputTbl,HLOOKUP($B$7&$C$7,inputTbl,2,FALSE),FALSE) -> 5 | H6: HeadVision | I6: 10 | O6: Now Y Position | P6: 20 | CX6: SLOPE
B7: Alternative | C7: 2 | H7: NClr | I7: 0 | O7: nXpos | P7: 20 | CX7: -5e-05
B8: nAlts | C8: 2 | H8: wClr | I8: 0 | O8: nYpos | P8: 20
H9: SillClr | I9: 0
H10: HeadClr | I10: 0
H11: SpandrelW | I11: =(roomwidth-nWin*wWin)/(nWin+1) -> 3
H12: SpandrelC | I12: =(roomwidth-nClr*wClr)/(nClr+1) -> 30
B14: Room | F14: Window | G14: Window | O14: Ref Point | S14: Exterior Obstruction | W14: Interior Surfaces | AC14: For Window from Ref Point to Head | AJ14: Sky Factors | AP14: For Window from Sill to Ref Point | AW14: Sky Factors | BC14: For Exterior Obstruction | BJ14: Sky Factors | BP14: For Effective Aperture | BZ14: Sky Components | CF14: ERC | CH14: For IRC | CU14: IRC | CV14: Total | CW14: Total | CX14: Total | CY14: Total | CZ14: Combined
B15: Width | C15: Depth | D15: Ceiling Ht | F15: W | H15: Width | I15: Sill | J15: Head | K15: xW | L15: WinCondition | M15: WinW | O15: Height | P15: Depth | Q15: xP | S15: Ht of Ext Obstruction | T15: Dist from Win | U15: Angle in Degrees | W15: Ceiling Refl | X15: Wall Refl | Y15: Floor Refl | Z15: Tvis | AC15: W | AD15: H | AE15: D | AF15: W/D | AG15: H/D | AH15: D2+H2 | AI15: D2+W2 | AJ15: SFH | AK15: SFV | AL15: SFP | AM15: T0 | AN15: Angle | AP15: W | AQ15: H | AR15: D | AS15: W/D | AT15: H/D | AU15: D2+H2 | AV15: D2+W2 | AW15: SFH | AX15: SFV | AY15: SFP | AZ15: T0 | BA15: Angle | BC15: W | BD15: H | BE15: D | BF15: W/D | BG15: H/D | BH15: D2+H2 | BI15: D2+W2 | BJ15: SFH | BK15: SFV | BL15: SFP | BM15: T0 | BN15: Angle | BP15: SFH | BQ15: SFV | BR15: SFP | BS15: Angle Subt by Aperture | BT15: sina | BU15: sinb | BV15: T0 | BW15: Avg Angle of Elev | BX15: CIE sky multiplier | BZ15: SCH | CA15: SCV | CB15: SCP | CC15: Win/Flr Ratio | CE15: 1/n | CF15: ERC | CH15: Ceiling Area | CI15: Wall Area | CJ15: Floor Area | CK15: Wall above | CL15: Wall below | CM15: Win above | CN15: Win below | CO15: Win Refl | CP15: Rcw | CQ15: Rfw | CR15: A | CS15: R | CT15: C | CU15: IRC | CV15: SC | CW15: ERC | CX15: IRC | CY15: DF | CZ15: DF
B16: =roomwidth -> 30 | C16: =roomdepth -> 30 | D16: =ClgHt -> 10 | F16: 1 | G16: v | H16: =IF(F16>nWin,0,wWin) -> 24 | I16: =IF(G16="v",SillVision,SillClr) -> 4 | J16: =IF(G16="v",HeadVision,HeadClr) -> 10 | K16: =B16-F16*H16-F16*spandrelW -> 3 | L16: =IF(Q16<K16,1,IF(Q16=K16,2,IF(Q16=K16+H16,4,IF(Q16<K16+H16,3,5)))) -> 5 | M16: =IF(OR(L16=2,L16=4),0,IF(L16=1,K16+H16-Q16,Q16-K16)) -> 26.25 | O16: =RefPtHt -> 2.5 | P16: =RefPtDepth -> 29.25 | Q16: =RefPtWidth -> 29.25 | S16: =ExtObstHt -> 7.5 | T16: =ExtObstDist -> 50 | U16: =DEGREES(ATAN(S16/(T16+P16))) -> 5.406212172 | W16: =ClgRefl -> 0.9 | X16: =WallRefl -> 0.75 | Y16: =FlrRefl -> 0.2 | Z16: =Tvis -> 0.7 | AC16: =M16 -> 26.25 | AD16: =J16-O16 -> 7.5 | AE16: =$P16 -> 29.25 | AF16: =AC16/AE16 -> 0.8974358974 | AG16: =AD16/AE16 -> 0.2564102564 | AH16: =AE16^2+AD16^2 -> 911.8125 | AI16: =AC16^2+AE16^2 -> 1544.625 | AJ16: =50/PI()*(ATAN(AF16)-AE16/SQRT(AH16)*ATAN(AC16/SQRT(AH16)))*1/100 -> 0.006082973026 | AK16: =50/PI()*((AC16/SQRT(AI16)*ATAN(AD16/SQRT(AI16)))+(AD16/SQRT(AH16)*ATAN(AC16/SQRT(AI16))))*1/100 -> 0.04332242974 | AL16: =50/PI()*(ATAN(AG16)-AE16/SQRT(AI16)*ATAN(AD16/SQRT(AH16)))*1/100 -> 0.01111182392 | AM16: =(1.018*$Z16)*COS(RADIANS(AN16))*(1+(SIN(RADIANS(AN16))^3)) -> 0.7008464299 | AN16: =DEGREES(ATAN(AG16)) -> 14.38139459 | AP16: =AC16 -> 26.25 | AQ16: =IF(I16-O16>0,I16-O16,0) -> 1.5 | AR16: =AE16 -> 29.25 | AS16: =AP16/AR16 -> 0.8974358974 | AT16: =AQ16/AR16 -> 0.05128205128 | AU16: =AR16^2+AQ16^2 -> 857.8125 | AV16: =AP16^2+AR16^2 -> 1544.625 | AW16: =50/PI()*(ATAN(AS16)-AR16/SQRT(AU16)*ATAN(AP16/SQRT(AU16)))*1/100 -> 0.0002565114525 | AX16: =50/PI()*((AP16/SQRT(AV16)*ATAN(AQ16/SQRT(AV16)))+(AQ16/SQRT(AU16)*ATAN(AP16/SQRT(AV16))))*1/100 -> 0.008855017293 | AY16: =50/PI()*(ATAN(AT16)-AR16/SQRT(AV16)*ATAN(AQ16/SQRT(AU16)))*1/100 -> 0.002093564979 | AZ16: =(1.018*$Z16)*COS(RADIANS(BA16))*(1+(SIN(RADIANS(BA16))^3)) -> 0.7117604296 | BA16: =DEGREES(ATAN(AT16)) -> 2.935673446 | BC16: =AP16 -> 26.25 | BD16: =S16 -> 7.5 | BE16: =P16+T16 -> 79.25 | BF16: =BC16/BE16 -> 0.3312302839 | BG16: =BD16/BE16 -> 0.09463722397 | BH16: =BE16^2+BD16^2 -> 6336.8125 | BI16: =BC16^2+BE16^2 -> 6969.625 | BJ16: =50/PI()*(ATAN(BF16)-BE16/SQRT(BH16)*ATAN(BC16/SQRT(BH16)))*1/100 -> 0.0004369120499 | BK16: =50/PI()*((BC16/SQRT(BI16)*ATAN(BD16/SQRT(BI16)))+(BD16/SQRT(BH16)*ATAN(BC16/SQRT(BI16))))*1/100 -> 0.009051815237 | BL16: =50/PI()*(ATAN(BG16)-BE16/SQRT(BI16)*ATAN(BD16/SQRT(BH16)))*1/100 -> 0.0008247066655 | BM16: =(1.018*$Z16)*COS(RADIANS(BN16))*(1+(SIN(RADIANS(BN16))^3)) -> 0.7100234983 | BN16: =DEGREES(ATAN(BG16)) -> 5.406212172 | BP16: =AJ16-MAX(AW16,BJ16) -> 0.005646060976 | BQ16: =AK16-MAX(AX16,BK16) -> 0.0342706145 | BR16: =AL16-MAX(AY16,BL16) -> 0.009018258943 | BS16: =IF(AN16-MAX(BA16,BN16)=0,0.0001,AN16-MAX(BA16,BN16)) -> 8.975182419 | BT16: =SIN(RADIANS(AN16)) -> 0.2483753503 | BU16: =SIN(RADIANS(MAX(BA16,BN16))) -> 0.09421625444 | BV16: =(1.018*$Z16)*((BT16+BT16^4/4)-(BU16+BU16^4/4))/RADIANS(BS16) -> 0.705523136 | BW16: =AN16-BS16/2 -> 9.893803382 | BX16: =-5*10^(-7)*BW16^3-2*10^(-5)*BW16^2+0.0154*BW16+0.4273 -> 0.5772225861 | BZ16: =BP16*$BX16*$BV16 -> 0.00229932383 | CA16: =BQ16*$BX16*$BV16 -> 0.01395649833 | CB16: =BR16*$BX16*$BV16 -> 0.003672630845 | CC16: =((J16-I16)*M16)/(B16*C16) -> 0.175 | CE16: =IF(BN16>BA16,(BN16-BA16)/AN16-BA16,0.00001) -> -2.763886301 | CH16: =B16*C16 -> 900 | CI16: =2*(B16+C16)*D16 -> 1200 | CJ16: =B16*C16 -> 900 | CK16: =((J16-I16)/2+I16)*2*(B16+C16)-CM16 -> 761.25 | CL16: =CI16-CK16 -> 438.75 | CM16: =(J16-I16)*M16/2 -> 78.75 | CN16: =(J16-I16)*M16-CM16 -> 78.75 | CO16: =1-Z16 -> 0.3 | CP16: =(CH16*W16+CK16*X16+CM16*CO16)/(CH16+CK16+CM16) -> 0.8072198276 | CQ16: =(CJ16*Y16+CL16*X16+CN16*CO16)/(CJ16+CL16+CN16) -> 0.3757936508 | CR16: =SUM(CH16:CJ16) -> 3000 | CS16: =(CH16*W16+(CK16+CL16)*X16+CJ16*Y16+(CM16+CN16)*CO16)/CR16 -> 0.64575 | CT16: =8*10^-5*BN16^3-0.0078*BN16^2-0.2915*BN16+39 -> 37.20875818 | CU16: =IF(BZ16=0,0,Z16*(CM16+CN16)/(CR16*(1-CS16))*(CT16*CQ16+5*CP16)*1/100) -> 0.01869287502 | CV16: =IF(H16=0,0,IF(L16=3,BZ16+BZ17,ABS(BZ16-BZ17))) -> 0.00200924649 | CW16: =IF(H16=0,0,IF(L16=3,CF16+CF17,ABS(CF16-CF17))) -> 0 | CX16: =IF(H16=0,0,IF(L16=3,CU16+CU17,ABS(CU16-CU17))) -> 0.01719889968 | CY16: =BZ16+CF16+CU16 -> 0.02099219885 | CZ16: =CV16+CW16+(IF(CX16<0,0,CX16)) -> 0.01920814617
B17: 30 | C17: 30 | D17: 10 | F17: 1 | G17: v | H17: 24 | I17: 4 | J17: 10 | K17: 3 | L17: =IF(Q17<K17,1,IF(Q17=K17,2,IF(Q17=K17+H17,4,IF(Q17<K17+H17,3,5)))) -> 5 | M17: =ABS(M16-H17) -> 2.25 | O17: 2.5 | P17: 29.25 | Q17: 29.25 | S17: 7.5 | T17: 50 | U17: =DEGREES(ATAN(S17/(T17+P17))) -> 5.406212172 | W17: 0.9 | X17: 0.75 | Y17: 0.2 | Z17: 0.7 | AC17: 2.25 | AD17: 7.5 | AE17: =$P17 -> 29.25 | AF17: =AC17/AE17 -> 0.07692307692 | AG17: =AD17/AE17 -> 0.2564102564 | AH17: =AE17^2+AD17^2 -> 911.8125 | AI17: =AC17^2+AE17^2 -> 860.625 | AJ17: =50/PI()*(ATAN(AF17)-AE17/SQRT(AH17)*ATAN(AC17/SQRT(AH17)))*1/100 -> 0.0007523826833 | AK17: =50/PI()*((AC17/SQRT(AI17)*ATAN(AD17/SQRT(AI17)))+(AD17/SQRT(AH17)*ATAN(AC17/SQRT(AI17))))*1/100 -> 0.006081145509 | AL17: =50/PI()*(ATAN(AG17)-AE17/SQRT(AI17)*ATAN(AD17/SQRT(AH17)))*1/100 -> 0.001316334203 | AM17: =(1.018*$Z17)*COS(RADIANS(AN17))*(1+(SIN(RADIANS(AN17))^3)) -> 0.7008464299 | AN17: =DEGREES(ATAN(AG17)) -> 14.38139459 | AP17: =AC17 -> 2.25 | AQ17: =IF(I17-O17>0,I17-O17,0) -> 1.5 | AR17: 29.25 | AS17: =AP17/AR17 -> 0.07692307692 | AT17: =AQ17/AR17 -> 0.05128205128 | AU17: =AR17^2+AQ17^2 -> 857.8125 | AV17: =AP17^2+AR17^2 -> 860.625 | AW17: =50/PI()*(ATAN(AS17)-AR17/SQRT(AU17)*ATAN(AP17/SQRT(AU17)))*1/100 -> 3.198612911e-05 | AX17: =50/PI()*((AP17/SQRT(AV17)*ATAN(AQ17/SQRT(AV17)))+(AQ17/SQRT(AU17)*ATAN(AP17/SQRT(AV17))))*1/100 -> 0.001247531849 | AY17: =50/PI()*(ATAN(AT17)-AR17/SQRT(AV17)*ATAN(AQ17/SQRT(AU17)))*1/100 -> 3.467112842e-05 | AZ17: =(1.018*$Z17)*COS(RADIANS(BA17))*(1+(SIN(RADIANS(BA17))^3)) -> 0.7117604296 | BA17: =DEGREES(ATAN(AT17)) -> 2.935673446 | BC17: =AP17 -> 2.25 | BD17: =S17 -> 7.5 | BE17: =P17+T17 -> 79.25 | BF17: =BC17/BE17 -> 0.02839116719 | BG17: =BD17/BE17 -> 0.09463722397 | BH17: =BE17^2+BD17^2 -> 6336.8125 | BI17: =BC17^2+BE17^2 -> 6285.625 | BJ17: =50/PI()*(ATAN(BF17)-BE17/SQRT(BH17)*ATAN(BC17/SQRT(BH17)))*1/100 -> 4.008877746e-05 | BK17: =50/PI()*((BC17/SQRT(BI17)*ATAN(BD17/SQRT(BI17)))+(BD17/SQRT(BH17)*ATAN(BC17/SQRT(BI17))))*1/100 -> 0.0008514544405 | BL17: =50/PI()*(ATAN(BG17)-BE17/SQRT(BI17)*ATAN(BD17/SQRT(BH17)))*1/100 -> 7.242925502e-05 | BM17: =(1.018*$Z17)*COS(RADIANS(BN17))*(1+(SIN(RADIANS(BN17))^3)) -> 0.7100234983 | BN17: =DEGREES(ATAN(BG17)) -> 5.406212172 | BP17: =AJ17-MAX(AW17,BJ17) -> 0.0007122939058 | BQ17: =AK17-MAX(AX17,BK17) -> 0.004833613661 | BR17: =AL17-MAX(AY17,BL17) -> 0.001243904948 | BS17: 8.975182419 | BT17: =SIN(RADIANS(AN17)) -> 0.2483753503 | BU17: =SIN(RADIANS(MAX(BA17,BN17))) -> 0.09421625444 | BV17: =(1.018*$Z17)*((BT17+BT17^4/4)-(BU17+BU17^4/4))/RADIANS(BS17) -> 0.705523136 | BW17: 9.893803382 | BX17: 0.5772225861 | BZ17: =BP17*$BX17*$BV17 -> 0.0002900773404 | CA17: =BQ17*$BX17*$BV17 -> 0.001968459626 | CB17: =BR17*$BX17*$BV17 -> 0.0005065726886 | CC17: 0.015 | CE17: =IF(BN17>BA17,(BN17-BA17)/AN17-BA17,0.00001) -> -2.763886301 | CH17: =B17*C17 -> 900 | CI17: =2*(B17+C17)*D17 -> 1200 | CJ17: =B17*C17 -> 900 | CK17: 833.25 | CL17: =CI17-CK17 -> 366.75 | CM17: 6.75 | CN17: 6.75 | CO17: =1-Z17 -> 0.3 | CP17: 0.8258405172 | CQ17: 0.3589222615 | CR17: =SUM(CH17:CJ17) -> 3000 | CS17: 0.63135 | CT17: =8*10^-5*BN17^3-0.0078*BN17^2-0.2915*BN17+39 -> 37.20875818 | CU17: =IF(BZ17=0,0,Z17*(CM17+CN17)/(CR17*(1-CS17))*(CT17*CQ17+5*CP17)*1/100) -> 0.001493975337 | CY17: 0.001784052677
B18: 30 | C18: 30 | D18: 10 | F18: 2 | G18: v | H18: 0 | I18: 4 | J18: 10 | K18: 24 | L18: 5 | M18: =IF(OR(L18=2,L18=4),0,IF(L18=1,K18+H18-Q18,Q18-K18)) -> 5.25 | O18: 2.5 | P18: 29.25 | Q18: 29.25 | S18: 7.5 | T18: 50 | U18: 5.406212172 | W18: 0.9 | X18: 0.75 | Y18: 0.2 | Z18: 0.7 | AC18: 5.25 | AD18: 7.5 | AE18: 29.25 | AF18: 0.1794871795 | AG18: 0.2564102564 | AH18: 911.8125 | AI18: 883.125 | AJ18: 0.001726582748 | AK18: 0.01386316613 | AL18: 0.001811636535 | AM18: 0.7008464299 | AN18: 14.38139459 | AP18: 5.25 | AQ18: 1.5 | AR18: 29.25 | AS18: 0.1794871795 | AT18: 0.05128205128 | AU18: 857.8125 | AV18: 883.125 | AW18: 7.336595547e-05 | AX18: 0.002843309192 | AY18: 0.0001387777076 | AZ18: 0.7117604296 | BA18: 2.935673446 | BC18: 5.25 | BD18: 7.5 | BE18: 79.25 | BF18: 0.06624605678 | BG18: 0.09463722397 | BH18: 6336.8125 | BI18: 6308.125 | BJ18: 9.331897996e-05 | BK18: 0.001980246101 | BL18: 9.910588101e-05 | BM18: 0.7100234983 | BN18: 5.406212172 | BP18: 0.001633263768 | BQ18: 0.01101985694 | BR18: 0.001672858828 | BS18: 8.975182419 | BT18: 0.2483753503 | BU18: 0.09421625444 | BV18: 0.705523136 | BW18: 9.893803382 | BX18: 0.5772225861 | BZ18: 0.0006651366888 | CA18: 0.004487769396 | CB18: 0.0006812615348 | CC18: 0.035 | CE18: -2.763886301 | CH18: 900 | CI18: 1200 | CJ18: 900 | CK18: 824.25 | CL18: 375.75 | CM18: 15.75 | CN18: 15.75 | CO18: 0.3 | CP18: 0.823512931 | CQ18: 0.3612369338 | CR18: 3000 | CS18: 0.63315 | CT18: 37.20875818 | CU18: 0.003517970735 | CV18: =IF(H18=0,0,IF(L18=3,BZ18+BZ19,ABS(BZ18-BZ19))) -> 0 | CW18: =IF(H18=0,0,IF(L18=3,CF18+CF19,ABS(CF18-CF19))) -> 0 | CX18: =IF(H18=0,0,IF(L18=3,CU18+CU19,ABS(CU18-CU19))) -> 0 | CY18: 0.004183107424 | CZ18: =CV18+CW18+(IF(CX18<0,0,CX18)) -> 0
B19: 30 | C19: 30 | D19: 10 | F19: 2 | G19: v | H19: 0 | I19: 4 | J19: 10 | K19: 24 | L19: 5 | M19: =ABS(M18-H19) -> 5.25 | O19: 2.5 | P19: 29.25 | Q19: 29.25 | S19: 7.5 | T19: 50 | U19: 5.406212172 | W19: 0.9 | X19: 0.75 | Y19: 0.2 | Z19: 0.7 | AC19: 5.25 | AD19: 7.5 | AE19: 29.25 | AF19: 0.1794871795 | AG19: 0.2564102564 | AH19: 911.8125 | AI19: 883.125 | AJ19: 0.001726582748 | AK19: 0.01386316613 | AL19: 0.001811636535 | AM19: 0.7008464299 | AN19: 14.38139459 | AP19: 5.25 | AQ19: 1.5 | AR19: 29.25 | AS19: 0.1794871795 | AT19: 0.05128205128 | AU19: 857.8125 | AV19: 883.125 | AW19: 7.336595547e-05 | AX19: 0.002843309192 | AY19: 0.0001387777076 | AZ19: 0.7117604296 | BA19: 2.935673446 | BC19: 5.25 | BD19: 7.5 | BE19: 79.25 | BF19: 0.06624605678 | BG19: 0.09463722397 | BH19: 6336.8125 | BI19: 6308.125 | BJ19: 9.331897996e-05 | BK19: 0.001980246101 | BL19: 9.910588101e-05 | BM19: 0.7100234983 | BN19: 5.406212172 | BP19: 0.001633263768 | BQ19: 0.01101985694 | BR19: 0.001672858828 | BS19: 8.975182419 | BT19: 0.2483753503 | BU19: 0.09421625444 | BV19: 0.705523136 | BW19: 9.893803382 | BX19: 0.5772225861 | BZ19: 0.0006651366888 | CA19: 0.004487769396 | CB19: 0.0006812615348 | CC19: 0.035 | CE19: -2.763886301 | CH19: 900 | CI19: 1200 | CJ19: 900 | CK19: 824.25 | CL19: 375.75 | CM19: 15.75 | CN19: 15.75 | CO19: 0.3 | CP19: 0.823512931 | CQ19: 0.3612369338 | CR19: 3000 | CS19: 0.63315 | CT19: 37.20875818 | CU19: 0.003517970735 | CY19: 0.004183107424
B20: 30 | C20: 30 | D20: 10 | F20: 3 | G20: v | H20: 0 | I20: 4 | J20: 10 | K20: 21 | L20: 5 | M20: =IF(OR(L20=2,L20=4),0,IF(L20=1,K20+H20-Q20,Q20-K20)) -> 8.25 | O20: 2.5 | P20: 29.25 | Q20: 29.25 | S20: 7.5 | T20: 50 | U20: 5.406212172 | W20: 0.9 | X20: 0.75 | Y20: 0.2 | Z20: 0.7 | AC20: 8.25 | AD20: 7.5 | AE20: 29.25 | AF20: 0.2820512821 | AG20: 0.2564102564 | AH20: 911.8125 | AI20: 923.625 | AJ20: 0.002636135316 | AK20: 0.02093151196 | AL20: 0.002657136005 | AM20: 0.7008464299 | AN20: 14.38139459 | AP20: 8.25 | AQ20: 1.5 | AR20: 29.25 | AS20: 0.2820512821 | AT20: 0.05128205128 | AU20: 857.8125 | AV20: 923.625 | AW20: 0.0001119220953 | AX20: 0.004291301468 | AY20: 0.0003164915033 | AZ20: 0.7117604296 | BA20: 2.935673446 | BC20: 8.25 | BD20: 7.5 | BE20: 79.25 | BF20: 0.1041009464 | BG20: 0.09463722397 | BH20: 6336.8125 | BI20: 6348.625 | BJ20: 0.000146023153 | BK20: 0.003093688507 | BL20: 0.0001467659445 | BM20: 0.7100234983 | BN20: 5.406212172 | BP20: 0.002490112163 | BQ20: 0.0166402105 | BR20: 0.002340644502 | BS20: 8.975182419 | BT20: 0.2483753503 | BU20: 0.09421625444 | BV20: 0.705523136 | BW20: 9.893803382 | BX20: 0.5772225861 | BZ20: 0.001014082962 | CA20: 0.006776624038 | CB20: 0.0009532131699 | CC20: 0.055 | CE20: -2.763886301 | CH20: 900 | CI20: 1200 | CJ20: 900 | CK20: 815.25 | CL20: 384.75 | CM20: 24.75 | CN20: 24.75 | CO20: 0.3 | CP20: 0.8211853448 | CQ20: 0.3634879725 | CR20: 3000 | CS20: 0.63495 | CT20: 37.20875818 | CU20: 0.005578317088 | CV20: =IF(H20=0,0,IF(L20=3,BZ20+BZ21,ABS(BZ20-BZ21))) -> 0 | CW20: =IF(H20=0,0,IF(L20=3,CF20+CF21,ABS(CF20-CF21))) -> 0 | CX20: =IF(H20=0,0,IF(L20=3,CU20+CU21,ABS(CU20-CU21))) -> 0 | CY20: 0.006592400049 | CZ20: =CV20+CW20+(IF(CX20<0,0,CX20)) -> 0
B21: 30 | C21: 30 | D21: 10 | F21: 3 | G21: v | H21: 0 | I21: 4 | J21: 10 | K21: 21 | L21: 5 | M21: =ABS(M20-H21) -> 8.25 | O21: 2.5 | P21: 29.25 | Q21: 29.25 | S21: 7.5 | T21: 50 | U21: 5.406212172 | W21: 0.9 | X21: 0.75 | Y21: 0.2 | Z21: 0.7 | AC21: 8.25 | AD21: 7.5 | AE21: 29.25 | AF21: 0.2820512821 | AG21: 0.2564102564 | AH21: 911.8125 | AI21: 923.625 | AJ21: 0.002636135316 | AK21: 0.02093151196 | AL21: 0.002657136005 | AM21: 0.7008464299 | AN21: 14.38139459 | AP21: 8.25 | AQ21: 1.5 | AR21: 29.25 | AS21: 0.2820512821 | AT21: 0.05128205128 | AU21: 857.8125 | AV21: 923.625 | AW21: 0.0001119220953 | AX21: 0.004291301468 | AY21: 0.0003164915033 | AZ21: 0.7117604296 | BA21: 2.935673446 | BC21: 8.25 | BD21: 7.5 | BE21: 79.25 | BF21: 0.1041009464 | BG21: 0.09463722397 | BH21: 6336.8125 | BI21: 6348.625 | BJ21: 0.000146023153 | BK21: 0.003093688507 | BL21: 0.0001467659445 | BM21: 0.7100234983 | BN21: 5.406212172 | BP21: 0.002490112163 | BQ21: 0.0166402105 | BR21: 0.002340644502 | BS21: 8.975182419 | BT21: 0.2483753503 | BU21: 0.09421625444 | BV21: 0.705523136 | BW21: 9.893803382 | BX21: 0.5772225861 | BZ21: 0.001014082962 | CA21: 0.006776624038 | CB21: 0.0009532131699 | CC21: 0.055 | CE21: -2.763886301 | CH21: 900 | CI21: 1200 | CJ21: 900 | CK21: 815.25 | CL21: 384.75 | CM21: 24.75 | CN21: 24.75 | CO21: 0.3 | CP21: 0.8211853448 | CQ21: 0.3634879725 | CR21: 3000 | CS21: 0.63495 | CT21: 37.20875818 | CU21: 0.005578317088 | CY21: 0.006592400049
B22: 30 | C22: 30 | D22: 10 | F22: 1 | G22: c | H22: =IF(ClrYN="y",IF(F22>nClr,0,wClr),0) -> 0 | I22: 0 | J22: 0 | K22: =B22-F22*H22-F22*spandrelC -> 0 | L22: 5 | M22: =IF(H22=0,0,IF(OR(L22=2,L22=4),0,IF(L22=1,K22+H22-Q22,Q22-K22))) -> 0 | O22: 2.5 | P22: 29.25 | Q22: 29.25 | S22: 7.5 | T22: 50 | U22: 5.406212172 | W22: 0.9 | X22: 0.75 | Y22: 0.2 | Z22: 0.7 | AC22: 0 | AD22: -2.5 | AE22: 29.25 | AF22: 0 | AG22: -0.08547008547 | AH22: 861.8125 | AI22: 855.5625 | AJ22: 0 | AK22: 0 | AL22: -4.905817921e-05 | AM22: 0.7095728579 | AN22: -4.885202568 | AP22: 0 | AQ22: 0 | AR22: 29.25 | AS22: 0 | AT22: 0 | AU22: 855.5625 | AV22: 855.5625 | AW22: 0 | AX22: 0 | AY22: 0 | AZ22: 0.7126 | BA22: 0 | BC22: 0 | BD22: 7.5 | BE22: 79.25 | BF22: 0 | BG22: 0.09463722397 | BH22: 6336.8125 | BI22: 6280.5625 | BJ22: 0 | BK22: 0 | BL22: 6.64072669e-05 | BM22: 0.7100234983 | BN22: 5.406212172 | BP22: 0 | BQ22: 0 | BR22: -0.0001154654461 | BS22: -10.29141474 | BT22: -0.08515960026 | BU22: 0.09421625444 | BV22: 0.7116610759 | BW22: 0.2605048021 | BX22: 0.4313104079 | BZ22: 0 | CA22: 0 | CB22: -3.544175253e-05 | CC22: 0 | CE22: -1.106650563 | CH22: 900 | CI22: 1200 | CJ22: 900 | CK22: 0 | CL22: 1200 | CM22: 0 | CN22: 0 | CO22: 0.3 | CP22: 0.9 | CQ22: 0.5142857143 | CR22: 3000 | CS22: 0.63 | CT22: 37.20875818 | CU22: 0 | CV22: =IF(H22=0,0,IF(L22=3,BZ22+BZ23,ABS(BZ22-BZ23))) -> 0 | CW22: =IF(H22=0,0,IF(L22=3,CF22+CF23,ABS(CF22-CF23))) -> 0 | CX22: =IF(H22=0,0,IF(L22=3,CU22+CU23,ABS(CU22-CU23))) -> 0 | CY22: 0 | CZ22: =CV22+CW22+(IF(CX22<0,0,CX22)) -> 0
B23: 30 | C23: 30 | D23: 10 | F23: 1 | G23: c | H23: 0 | I23: 0 | J23: 0 | K23: 0 | L23: 5 | M23: =ABS(M22-H23) -> 0 | O23: 2.5 | P23: 29.25 | Q23: 29.25 | S23: 7.5 | T23: 50 | U23: 5.406212172 | W23: 0.9 | X23: 0.75 | Y23: 0.2 | Z23: 0.7 | AC23: 0 | AD23: -2.5 | AE23: 29.25 | AF23: 0 | AG23: -0.08547008547 | AH23: 861.8125 | AI23: 855.5625 | AJ23: 0 | AK23: 0 | AL23: -4.905817921e-05 | AM23: 0.7095728579 | AN23: -4.885202568 | AP23: 0 | AQ23: 0 | AR23: 29.25 | AS23: 0 | AT23: 0 | AU23: 855.5625 | AV23: 855.5625 | AW23: 0 | AX23: 0 | AY23: 0 | AZ23: 0.7126 | BA23: 0 | BC23: 0 | BD23: 7.5 | BE23: 79.25 | BF23: 0 | BG23: 0.09463722397 | BH23: 6336.8125 | BI23: 6280.5625 | BJ23: 0 | BK23: 0 | BL23: 6.64072669e-05 | BM23: 0.7100234983 | BN23: 5.406212172 | BP23: 0 | BQ23: 0 | BR23: -0.0001154654461 | BS23: -10.29141474 | BT23: -0.08515960026 | BU23: 0.09421625444 | BV23: 0.7116610759 | BW23: 0.2605048021 | BX23: 0.4313104079 | BZ23: 0 | CA23: 0 | CB23: -3.544175253e-05 | CC23: 0 | CE23: -1.106650563 | CH23: 900 | CI23: 1200 | CJ23: 900 | CK23: 0 | CL23: 1200 | CM23: 0 | CN23: 0 | CO23: 0.3 | CP23: 0.9 | CQ23: 0.5142857143 | CR23: 3000 | CS23: 0.63 | CT23: 37.20875818 | CU23: 0 | CY23: 0
B24: 30 | C24: 30 | D24: 10 | F24: 2 | G24: c | H24: 0 | I24: 0 | J24: 0 | K24: -30 | L24: 5 | M24: =IF(H24=0,0,IF(OR(L24=2,L24=4),0,IF(L24=1,K24+H24-Q24,Q24-K24))) -> 0 | O24: 2.5 | P24: 29.25 | Q24: 29.25 | S24: 7.5 | T24: 50 | U24: 5.406212172 | W24: 0.9 | X24: 0.75 | Y24: 0.2 | Z24: 0.7 | AC24: 0 | AD24: -2.5 | AE24: 29.25 | AF24: 0 | AG24: -0.08547008547 | AH24: 861.8125 | AI24: 855.5625 | AJ24: 0 | AK24: 0 | AL24: -4.905817921e-05 | AM24: 0.7095728579 | AN24: -4.885202568 | AP24: 0 | AQ24: 0 | AR24: 29.25 | AS24: 0 | AT24: 0 | AU24: 855.5625 | AV24: 855.5625 | AW24: 0 | AX24: 0 | AY24: 0 | AZ24: 0.7126 | BA24: 0 | BC24: 0 | BD24: 7.5 | BE24: 79.25 | BF24: 0 | BG24: 0.09463722397 | BH24: 6336.8125 | BI24: 6280.5625 | BJ24: 0 | BK24: 0 | BL24: 6.64072669e-05 | BM24: 0.7100234983 | BN24: 5.406212172 | BP24: 0 | BQ24: 0 | BR24: -0.0001154654461 | BS24: -10.29141474 | BT24: -0.08515960026 | BU24: 0.09421625444 | BV24: 0.7116610759 | BW24: 0.2605048021 | BX24: 0.4313104079 | BZ24: 0 | CA24: 0 | CB24: -3.544175253e-05 | CC24: 0 | CE24: -1.106650563 | CH24: 900 | CI24: 1200 | CJ24: 900 | CK24: 0 | CL24: 1200 | CM24: 0 | CN24: 0 | CO24: 0.3 | CP24: 0.9 | CQ24: 0.5142857143 | CR24: 3000 | CS24: 0.63 | CT24: 37.20875818 | CU24: 0 | CV24: =IF(H24=0,0,IF(L24=3,BZ24+BZ25,ABS(BZ24-BZ25))) -> 0 | CW24: =IF(H24=0,0,IF(L24=3,CF24+CF25,ABS(CF24-CF25))) -> 0 | CX24: =IF(H24=0,0,IF(L24=3,CU24+CU25,ABS(CU24-CU25))) -> 0 | CY24: 0 | CZ24: =CV24+CW24+(IF(CX24<0,0,CX24)) -> 0
B25: 30 | C25: 30 | D25: 10 | F25: 2 | G25: c | H25: 0 | I25: 0 | J25: 0 | K25: -30 | L25: 5 | M25: =ABS(M24-H25) -> 0 | O25: 2.5 | P25: 29.25 | Q25: 29.25 | S25: 7.5 | T25: 50 | U25: 5.406212172 | W25: 0.9 | X25: 0.75 | Y25: 0.2 | Z25: 0.7 | AC25: 0 | AD25: -2.5 | AE25: 29.25 | AF25: 0 | AG25: -0.08547008547 | AH25: 861.8125 | AI25: 855.5625 | AJ25: 0 | AK25: 0 | AL25: -4.905817921e-05 | AM25: 0.7095728579 | AN25: -4.885202568 | AP25: 0 | AQ25: 0 | AR25: 29.25 | AS25: 0 | AT25: 0 | AU25: 855.5625 | AV25: 855.5625 | AW25: 0 | AX25: 0 | AY25: 0 | AZ25: 0.7126 | BA25: 0 | BC25: 0 | BD25: 7.5 | BE25: 79.25 | BF25: 0 | BG25: 0.09463722397 | BH25: 6336.8125 | BI25: 6280.5625 | BJ25: 0 | BK25: 0 | BL25: 6.64072669e-05 | BM25: 0.7100234983 | BN25: 5.406212172 | BP25: 0 | BQ25: 0 | BR25: -0.0001154654461 | BS25: -10.29141474 | BT25: -0.08515960026 | BU25: 0.09421625444 | BV25: 0.7116610759 | BW25: 0.2605048021 | BX25: 0.4313104079 | BZ25: 0 | CA25: 0 | CB25: -3.544175253e-05 | CC25: 0 | CE25: -1.106650563 | CH25: 900 | CI25: 1200 | CJ25: 900 | CK25: 0 | CL25: 1200 | CM25: 0 | CN25: 0 | CO25: 0.3 | CP25: 0.9 | CQ25: 0.5142857143 | CR25: 3000 | CS25: 0.63 | CT25: 37.20875818 | CU25: 0 | CY25: 0
B26: 30 | C26: 30 | D26: 10 | F26: 3 | G26: c | H26: 0 | I26: 0 | J26: 0 | K26: -60 | L26: 5 | M26: =IF(H26=0,0,IF(OR(L26=2,L26=4),0,IF(L26=1,K26+H26-Q26,Q26-K26))) -> 0 | O26: 2.5 | P26: 29.25 | Q26: 29.25 | S26: 7.5 | T26: 50 | U26: 5.406212172 | W26: 0.9 | X26: 0.75 | Y26: 0.2 | Z26: 0.7 | AC26: 0 | AD26: -2.5 | AE26: 29.25 | AF26: 0 | AG26: -0.08547008547 | AH26: 861.8125 | AI26: 855.5625 | AJ26: 0 | AK26: 0 | AL26: -4.905817921e-05 | AM26: 0.7095728579 | AN26: -4.885202568 | AP26: 0 | AQ26: 0 | AR26: 29.25 | AS26: 0 | AT26: 0 | AU26: 855.5625 | AV26: 855.5625 | AW26: 0 | AX26: 0 | AY26: 0 | AZ26: 0.7126 | BA26: 0 | BC26: 0 | BD26: 7.5 | BE26: 79.25 | BF26: 0 | BG26: 0.09463722397 | BH26: 6336.8125 | BI26: 6280.5625 | BJ26: 0 | BK26: 0 | BL26: 6.64072669e-05 | BM26: 0.7100234983 | BN26: 5.406212172 | BP26: 0 | BQ26: 0 | BR26: -0.0001154654461 | BS26: -10.29141474 | BT26: -0.08515960026 | BU26: 0.09421625444 | BV26: 0.7116610759 | BW26: 0.2605048021 | BX26: 0.4313104079 | BZ26: 0 | CA26: 0 | CB26: -3.544175253e-05 | CC26: 0 | CE26: -1.106650563 | CH26: 900 | CI26: 1200 | CJ26: 900 | CK26: 0 | CL26: 1200 | CM26: 0 | CN26: 0 | CO26: 0.3 | CP26: 0.9 | CQ26: 0.5142857143 | CR26: 3000 | CS26: 0.63 | CT26: 37.20875818 | CU26: 0 | CV26: =IF(H26=0,0,IF(L26=3,BZ26+BZ27,ABS(BZ26-BZ27))) -> 0 | CW26: =IF(H26=0,0,IF(L26=3,CF26+CF27,ABS(CF26-CF27))) -> 0 | CX26: =IF(H26=0,0,IF(L26=3,CU26+CU27,ABS(CU26-CU27))) -> 0 | CY26: 0 | CZ26: =CV26+CW26+(IF(CX26<0,0,CX26)) -> 0
B27: 30 | C27: 30 | D27: 10 | F27: 3 | G27: c | H27: 0 | I27: 0 | J27: 0 | K27: -60 | L27: 5 | M27: =ABS(M26-H27) -> 0 | O27: 2.5 | P27: 29.25 | Q27: 29.25 | S27: 7.5 | T27: 50 | U27: 5.406212172 | W27: 0.9 | X27: 0.75 | Y27: 0.2 | Z27: 0.7 | AC27: 0 | AD27: -2.5 | AE27: 29.25 | AF27: 0 | AG27: -0.08547008547 | AH27: 861.8125 | AI27: 855.5625 | AJ27: 0 | AK27: 0 | AL27: -4.905817921e-05 | AM27: 0.7095728579 | AN27: -4.885202568 | AP27: 0 | AQ27: 0 | AR27: =AE27 -> 29.25 | AS27: 0 | AT27: 0 | AU27: 855.5625 | AV27: 855.5625 | AW27: 0 | AX27: 0 | AY27: 0 | AZ27: 0.7126 | BA27: 0 | BC27: 0 | BD27: 7.5 | BE27: 79.25 | BF27: 0 | BG27: 0.09463722397 | BH27: 6336.8125 | BI27: 6280.5625 | BJ27: 0 | BK27: 0 | BL27: 6.64072669e-05 | BM27: 0.7100234983 | BN27: 5.406212172 | BP27: 0 | BQ27: 0 | BR27: -0.0001154654461 | BS27: =IF(AN27-MAX(BA27,BN27)=0,0.0001,AN27-MAX(BA27,BN27)) -> -10.29141474 | BT27: -0.08515960026 | BU27: 0.09421625444 | BV27: 0.7116610759 | BW27: 0.2605048021 | BX27: 0.4313104079 | BZ27: 0 | CA27: 0 | CB27: -3.544175253e-05 | CC27: 0 | CE27: -1.106650563 | CH27: 900 | CI27: 1200 | CJ27: 900 | CK27: 0 | CL27: 1200 | CM27: 0 | CN27: 0 | CO27: 0.3 | CP27: 0.9 | CQ27: 0.5142857143 | CR27: 3000 | CS27: 0.63 | CT27: 37.20875818 | CU27: 0 | CY27: 0
CV29: =SUM(CV16:CV28) -> 0.00200924649 | CW29: =SUM(CW16:CW28) -> 0 | CX29: =IF(SUM(CX16:CX28)+$CX$7*RefPtDepth<0,0,SUM(CX16:CX28)+$CX$7*RefPtDepth) -> 0.01573639968 | CZ29: =CV29+CW29+CX29 -> 0.01774564617 | DA29: sums
CF31: =1/(100/($T$4*100)*(1/CE31-1))*BZ31 ->  | CU31: =IF(BZ31=0,0,Z31*(CM31+CN31)/(CR31*(1-CS31))*(CT31*CQ31+5*CP31)*1/100+$CX$7*P31) -> 0 | CX31: =IF(H31=0,0,IF(L31=3,CU31+CU32,ABS(CU31-CU32)))+$CX$7*P31 -> 0 | CZ31: saved fomulae
T35: =13*0.85 -> 11.05
B49: Notes
B50: Window Conditions (imagine yourself standing at on the grid point and looking at the window wall)
C51: 1 | D51: point is to left of window
C52: 2 | D52: point is at the left edge of the window
C53: 3 | D53: point is between window width
C54: 4 | D54: point is on window right edge
C55: 5 | D55: point is to right of window

Sheet gridPoints (hidden)
D2: RoomWidth | E2: =roomwidth -> 30
D3: RoomDepth | E3: =roomdepth -> 30
F5: position | G5: 1 | H5: 2 | I5: 3 | J5: 4 | K5: 5 | L5: 6 | M5: 7 | N5: 8 | O5: 9 | P5: 10 | Q5: 11 | R5: 12 | S5: 13 | T5: 14 | U5: 15 | V5: 16 | W5: 17 | X5: 18 | Y5: 19 | Z5: 20 | AE5: =C35 -> 6
F6: X | G6: =ROUND(roomwidth/nXpos/2,2) -> 0.75 | H6: =ROUND(G6+roomwidth/nXpos,2) -> 2.25 | I6: 3.75 | J6: 5.25 | K6: 6.75 | L6: 8.25 | M6: 9.75 | N6: 11.25 | O6: 12.75 | P6: 14.25 | Q6: 15.75 | R6: 17.25 | S6: 18.75 | T6: 20.25 | U6: 21.75 | V6: 23.25 | W6: 24.75 | X6: 26.25 | Y6: 27.75 | Z6: 29.25
D8: index | G8: =COLUMN()-COLUMN($B$8)+1 -> 6 | H8: =COLUMN()-COLUMN($B$8)+1 -> 7 | I8: 8 | J8: 9 | K8: 10 | L8: 11 | M8: 12 | N8: 13 | O8: 14 | P8: 15 | Q8: 16 | R8: 17 | S8: 18 | T8: 19 | U8: 20 | V8: 21 | W8: 22 | X8: 23 | Y8: 24 | Z8: 25
B10: position | C10: Y
B11: 1 | C11: =ROUND(roomdepth/nYpos/2,2) -> 0.75 | D11: =ROW()-ROW($D$5) -> 6 | G11: 0.02823107542 | H11: 0.04324579161 | I11: 0.06895843957 | J11: 0.08398449028 | K11: 0.08976010779 | L11: 0.09220033374 | M11: 0.09334572683 | N11: 0.09391591962 | O11: 0.09419884751 | P11: 0.0943170096 | Q11: 0.0943170096 | R11: 0.09419884751 | S11: 0.09391591962 | T11: 0.09334572683 | U11: 0.09220033374 | V11: 0.08976010779 | W11: 0.08398449028 | X11: 0.06895843957 | Y11: 0.04324579161 | Z11: 0.02823107542 | AE11: =HLOOKUP($AE$5,gridTbl,$B11+6,FALSE) -> 0.09220033374
B12: 2 | C12: =ROUND(C11+roomdepth/nYpos,2) -> 2.25 | D12: =ROW()-ROW($D$5) -> 7 | G12: 0.05524760789 | H12: 0.08743329698 | I12: 0.1299890235 | J12: 0.1621663483 | K12: 0.1794673431 | L12: 0.1882056851 | M12: 0.1927380398 | N12: 0.1951490712 | O12: 0.1964032061 | P12: 0.196942863 | Q12: 0.196942863 | R12: 0.1964032061 | S12: 0.1951490712 | T12: 0.1927380398 | U12: 0.1882056851 | V12: 0.1794673431 | W12: 0.1621663483 | X12: 0.1299890235 | Y12: 0.08743329698 | Z12: 0.05524760789 | AE12: 0.1882056851
B13: 3 | C13: 3.75 | D13: 8 | G13: 0.05913791648 | H13: 0.08285829421 | I13: 0.1105202599 | J13: 0.134217628 | K13: 0.1502095201 | L13: 0.1598379793 | M13: 0.1654256304 | N13: 0.1686145712 | O13: 0.1703466461 | P13: 0.1711098857 | Q13: 0.1711098857 | R13: 0.1703466461 | S13: 0.1686145712 | T13: 0.1654256304 | U13: 0.1598379793 | V13: 0.1502095201 | W13: 0.134217628 | X13: 0.1105202599 | Y13: 0.08285829421 | Z13: 0.05913791648 | AE13: 0.1598379793
B14: 4 | C14: 5.25 | D14: 9 | G14: 0.05370829504 | H14: 0.06896404036 | I14: 0.08576587649 | J14: 0.1009889844 | K14: 0.1126373029 | L14: 0.1206084066 | M14: 0.1257260706 | N14: 0.1288639557 | O14: 0.1306504373 | P14: 0.1314588997 | Q14: 0.1314588997 | R14: 0.1306504373 | S14: 0.1288639557 | T14: 0.1257260706 | U14: 0.1206084066 | V14: 0.1126373029 | W14: 0.1009889844 | X14: 0.08576587649 | Y14: 0.06896404036 | Z14: 0.05370829504 | AE14: 0.1206084066
B15: 5 | C15: 6.75 | D15: 10 | G15: 0.04661043158 | H15: 0.05629414643 | I15: 0.06663808805 | J15: 0.07628373889 | K15: 0.08421899135 | L15: 0.09013988451 | M15: 0.09425376226 | N15: 0.09693865237 | O15: 0.0985358186 | P15: 0.09927752399 | Q15: 0.09927752399 | R15: 0.0985358186 | S15: 0.09693865237 | T15: 0.09425376226 | U15: 0.09013988451 | V15: 0.08421899135 | W15: 0.07628373889 | X15: 0.06663808805 | Y15: 0.05629414643 | Z15: 0.04661043158 | AE15: 0.09013988451
B16: 6 | C16: 8.25 | D16: 11 | G16: 0.04031816258 | H16: 0.04656723685 | I16: 0.05311757648 | J16: 0.05932643434 | K16: 0.06466637331 | L16: 0.06888926316 | M16: 0.07199949336 | N16: 0.0741329875 | O16: 0.07545001698 | P16: 0.0760755909 | Q16: 0.0760755909 | R16: 0.07545001698 | S16: 0.0741329875 | T16: 0.07199949336 | U16: 0.06888926316 | V16: 0.06466637331 | W16: 0.05932643434 | X16: 0.05311757648 | Y16: 0.04656723685 | Z16: 0.04031816258 | AE16: 0.06888926316
B17: 7 | C17: 9.75 | D17: 12 | G17: 0.03530182178 | H17: 0.03943156744 | I17: 0.04370425557 | J17: 0.04779407664 | K17: 0.05141311615 | L17: 0.0543901185 | M17: 0.05667667563 | N17: 0.05830560015 | O17: 0.05934106295 | P17: 0.05984201202 | Q17: 0.05984201202 | R17: 0.05934106295 | S17: 0.05830560015 | T17: 0.05667667563 | U17: 0.0543901185 | V17: 0.05141311615 | W17: 0.04779407664 | X17: 0.04370425557 | Y17: 0.03943156744 | Z17: 0.03530182178 | AE17: 0.0543901185
B18: 8 | C18: 11.25 | D18: 13 | G18: 0.03143044442 | H18: 0.03422423284 | I18: 0.03708616747 | J18: 0.03984207875 | K18: 0.0423269658 | L18: 0.0444268575 | M18: 0.04608857372 | N18: 0.04730584195 | O18: 0.04809704998 | P18: 0.04848532026 | Q18: 0.04848532026 | R18: 0.04809704998 | S18: 0.04730584195 | T18: 0.04608857372 | U18: 0.0444268575 | V18: 0.0423269658 | W18: 0.03984207875 | X18: 0.03708616747 | Y18: 0.03422423284 | Z18: 0.03143044442 | AE18: 0.0444268575
B19: 9 | C19: 12.75 | D19: 14 | G19: 0.02846952754 | H19: 0.03039989001 | I19: 0.03236122338 | J19: 0.03425689351 | K19: 0.03598789389 | L19: 0.03747815167 | M19: 0.03868259886 | N19: 0.03958291671 | O19: 0.0401778323 | P19: 0.04047291331 | Q19: 0.04047291331 | R19: 0.0401778323 | S19: 0.03958291671 | T19: 0.03868259886 | U19: 0.03747815167 | V19: 0.03598789389 | W19: 0.03425689351 | X19: 0.03236122338 | Y19: 0.03039989001 | Z19: 0.02846952754 | AE19: 0.03747815167
B20: 10 | C20: 14.25 | D20: 15 | G20: 0.02622264351 | H20: 0.02758399187 | I20: 0.02895722186 | J20: 0.03028758737 | K20: 0.03151305227 | L20: 0.03258185647 | M20: 0.03345868088 | N20: 0.03412369352 | O20: 0.03456842843 | P20: 0.03479076047 | Q20: 0.03479076047 | R20: 0.03456842843 | S20: 0.03412369352 | T20: 0.03345868088 | U20: 0.03258185647 | V20: 0.03151305227 | W20: 0.03028758737 | X20: 0.02895722186 | Y20: 0.02758399187 | Z20: 0.02622264351 | AE20: 0.03258185647
B21: 11 | C21: 15.75 | D21: 16 | G21: 0.02445234251 | H21: 0.02542200775 | I21: 0.02639355478 | J21: 0.02733639724 | K21: 0.02821045064 | L21: 0.02897987783 | M21: 0.02961788718 | N21: 0.03010686283 | O21: 0.03043672823 | P21: 0.03060258254 | Q21: 0.03060258254 | R21: 0.03043672823 | S21: 0.03010686283 | T21: 0.02961788718 | U21: 0.02897987783 | V21: 0.02821045064 | W21: 0.02733639724 | X21: 0.02639355478 | Y21: 0.02542200775 | Z21: 0.02445234251
B22: 12 | C22: 17.25 | D22: 17 | G22: 0.02304148797 | H22: 0.02373541086 | I22: 0.02442607812 | J22: 0.02509749747 | K22: 0.02572315843 | L22: 0.02627781101 | M22: 0.02674138327 | N22: 0.02709940904 | O22: 0.02734248103 | P22: 0.02746521128 | Q22: 0.02746521128 | R22: 0.02734248103 | S22: 0.02709940904 | T22: 0.02674138327 | U22: 0.02627781101 | V22: 0.02572315843 | W22: 0.02509749747 | X22: 0.02442607812 | Y22: 0.02373541086 | Z22: 0.02304148797
B23: 13 | C23: 18.75 | D23: 18 | G23: 0.02190339296 | H23: 0.022399257 | I23: 0.02288940692 | J23: 0.02336703396 | K23: 0.0238143315 | L23: 0.0242132198 | M23: 0.02454871043 | N23: 0.02480936008 | O23: 0.02498718437 | P23: 0.02507725678 | Q23: 0.02507725678 | R23: 0.02498718437 | S23: 0.02480936008 | T23: 0.02454871043 | U23: 0.0242132198 | V23: 0.0238143315 | W23: 0.02336703396 | X23: 0.02288940692 | Y23: 0.022399257 | Z23: 0.02190339296
B24: 14 | C24: 20.25 | D24: 19 | G24: 0.02097082152 | H24: 0.02132521106 | I24: 0.0216695839 | J24: 0.0220064637 | K24: 0.02232380482 | L24: 0.02260847361 | M24: 0.02284926378 | N24: 0.02303729196 | O24: 0.02316609005 | P24: 0.0232314992 | Q24: 0.0232314992 | R24: 0.02316609005 | S24: 0.02303729196 | T24: 0.02284926378 | U24: 0.02260847361 | V24: 0.02232380482 | W24: 0.0220064637 | X24: 0.0216695839 | Y24: 0.02132521106 | Z24: 0.02097082152
B25: 15 | C25: 21.75 | D25: 20 | G25: 0.02017930374 | H25: 0.0204310588 | I25: 0.02067575139 | J25: 0.02091649359 | K25: 0.02114113242 | L25: 0.02134113657 | M25: 0.02151135576 | N25: 0.0216449561 | O25: 0.02173682527 | P25: 0.02178359312 | Q25: 0.02178359312 | R25: 0.02173682527 | S25: 0.0216449561 | T25: 0.02151135576 | U25: 0.02134113657 | V25: 0.02114113242 | W25: 0.02091649359 | X25: 0.02067575139 | Y25: 0.0204310588 | Z25: 0.02017930374
B26: 16 | C26: 23.25 | D26: 21 | G26: 0.01952099931 | H26: 0.019691174 | I26: 0.01985466025 | J26: 0.02001737293 | K26: 0.0201738256 | L26: 0.02031673057 | M26: 0.0204396453 | N26: 0.02053503899 | O26: 0.02059896858 | P26: 0.02063160115 | Q26: 0.02063160115 | R26: 0.02059896858 | S26: 0.02053503899 | T26: 0.0204396453 | U26: 0.02031673057 | V26: 0.0201738256 | W26: 0.02001737293 | X26: 0.01985466025 | Y26: 0.019691174 | Z26: 0.01952099931
B27: 17 | C27: 24.75 | D27: 22 | G27: 0.0189673633 | H27: 0.01907525055 | I27: 0.01917705422 | J27: 0.01928067278 | K27: 0.01938257567 | L27: 0.01947728063 | M27: 0.01955990206 | N27: 0.01962634634 | O27: 0.01967344641 | P27: 0.01969853194 | Q27: 0.01969853194 | R27: 0.01967344641 | S27: 0.01962634634 | T27: 0.01955990206 | U27: 0.01947728063 | V27: 0.01938257567 | W27: 0.01928067278 | X27: 0.01917705422 | Y27: 0.01907525055 | Z27: 0.0189673633
B28: 18 | C28: 26.25 | D28: 23 | G28: 0.01849711275 | H28: 0.0185566561 | I28: 0.01861088993 | J28: 0.01866900413 | K28: 0.01872874624 | L28: 0.0187858308 | M28: 0.01883642763 | N28: 0.01887731547 | O28: 0.01890599532 | P28: 0.01892076553 | Q28: 0.01892076553 | R28: 0.01890599532 | S28: 0.01887731547 | T28: 0.01883642763 | U28: 0.0187858308 | V28: 0.01872874624 | W28: 0.01866900413 | X28: 0.01861088993 | Y28: 0.0185566561 | Z28: 0.01849711275
B29: 19 | C29: 27.75 | D29: 24 | G29: 0.01809477289 | H29: 0.01811563685 | I29: 0.01813189866 | J29: 0.01815383676 | K29: 0.01818027177 | L29: 0.01820792466 | M29: 0.01823385659 | N29: 0.01825558553 | O29: 0.01827117697 | P29: 0.01827930814 | Q29: 0.01827930814 | R29: 0.01827117697 | S29: 0.01825558553 | T29: 0.01823385659 | U29: 0.01820792466 | V29: 0.01818027177 | W29: 0.01815383676 | X29: 0.01813189866 | Y29: 0.01811563685 | Z29: 0.01809477289
B30: 20 | C30: 29.25 | D30: 25 | G30: 0.01774564617 | H30: 0.01773612491 | I30: 0.01772269319 | J30: 0.0177164387 | K30: 0.01771697748 | L30: 0.0177217797 | M30: 0.01772857562 | N30: 0.01773544403 | O30: 0.01774088346 | P30: 0.01774386465 | Q30: 0.01774386465 | R30: 0.01774088346 | S30: 0.01773544403 | T30: 0.01772857562 | U30: 0.0177217797 | V30: 0.01771697748 | W30: 0.0177164387 | X30: 0.01772269319 | Y30: 0.01773612491 | Z30: 0.01774564617
B35: Y grid | C35: 6 | D35: ="Daylight Factor for points "&HLOOKUP(C35,gridXtbl,2,FALSE)&"' from the left side" -> Daylight Factor for points 8.25' from the left side

Sheet output (hidden)
E2: MaxUniformity
E3: =Interface!$E$5 -> 10 | F3: =MIN(E10:N19)*E3 -> 0.2622264351
E4: MinDF
E5: =Interface!$E$4 -> 0.01
E7: 1 | F7: 2 | G7: 3 | H7: 4 | I7: 5 | J7: 6 | K7: 7 | L7: 8 | M7: 9 | N7: 10 | O7: 11 | P7: 12 | Q7: 13 | R7: 14 | S7: 15 | T7: 16 | U7: 17 | V7: 18 | W7: 19 | X7: 20
E8: =HLOOKUP(E7,gridTbl,2,FALSE)&"'" -> 0.75' | F8: 2.25' | G8: 3.75' | H8: 5.25' | I8: 6.75' | J8: 8.25' | K8: 9.75' | L8: 11.25' | M8: 12.75' | N8: 14.25' | O8: 15.75' | P8: 17.25' | Q8: 18.75' | R8: 20.25' | S8: 21.75' | T8: 23.25' | U8: 24.75' | V8: 26.25' | W8: 27.75' | X8: 29.25'
N9: W I N D O W W A L L | Z9: Color for Iso-contours | AC9: colors | AD9: values
C10: 1 | D10: =VLOOKUP(C10,gridTbl,2,FALSE)&"'" -> 0.75' | E10: =VLOOKUP($C10,gridTbl,HLOOKUP(E$7,gridTbl,4,FALSE),FALSE) -> 0.02823107542 | F10: 0.04324579161 | G10: 0.06895843957 | H10: 0.08398449028 | I10: 0.08976010779 | J10: 0.09220033374 | K10: 0.09334572683 | L10: 0.09391591962 | M10: 0.09419884751 | N10: 0.0943170096 | O10: =VLOOKUP($C10,gridTbl,HLOOKUP(O$7,gridTbl,4,FALSE),FALSE) -> 0.0943170096 | P10: 0.09419884751 | Q10: 0.09391591962 | R10: 0.09334572683 | S10: 0.09220033374 | T10: 0.08976010779 | U10: 0.08398449028 | V10: 0.06895843957 | W10: 0.04324579161 | X10: 0.02823107542 | AA10: >20 | AB10: % | AC10: 3 | AD10: 0.2 | AE10: 10 | AF10: ="cv_"&AE10 -> cv_10 | AG10: =AF10&" = range("&AF10&").value" -> cv_10 = range(cv_10).value
C11: 2 | D11: 2.25' | E11: 0.05524760789 | F11: 0.08743329698 | G11: 0.1299890235 | H11: 0.1621663483 | I11: 0.1794673431 | J11: 0.1882056851 | K11: 0.1927380398 | L11: 0.1951490712 | M11: 0.1964032061 | N11: 0.196942863 | O11: 0.196942863 | P11: 0.1964032061 | Q11: 0.1951490712 | R11: 0.1927380398 | S11: 0.1882056851 | T11: 0.1794673431 | U11: 0.1621663483 | V11: 0.1299890235 | W11: 0.08743329698 | X11: 0.05524760789 | AA11: 10-20 | AB11: % | AC11: 46 | AD11: 0.2 | AE11: 9 | AF11: ="cv_"&AE11 -> cv_9 | AG11: cv_9 = range(cv_9).value
C12: 3 | D12: 3.75' | E12: 0.05913791648 | F12: 0.08285829421 | G12: 0.1105202599 | H12: 0.134217628 | I12: 0.1502095201 | J12: 0.1598379793 | K12: 0.1654256304 | L12: 0.1686145712 | M12: 0.1703466461 | N12: 0.1711098857 | O12: 0.1711098857 | P12: 0.1703466461 | Q12: 0.1686145712 | R12: 0.1654256304 | S12: 0.1598379793 | T12: 0.1502095201 | U12: 0.134217628 | V12: 0.1105202599 | W12: 0.08285829421 | X12: 0.05913791648 | AA12: 7-10 | AB12: % | AC12: 45 | AD12: 0.1 | AE12: 8 | AF12: cv_8 | AG12: cv_8 = range(cv_8).value
C13: 4 | D13: 5.25' | E13: 0.05370829504 | F13: 0.06896404036 | G13: 0.08576587649 | H13: 0.1009889844 | I13: 0.1126373029 | J13: 0.1206084066 | K13: 0.1257260706 | L13: 0.1288639557 | M13: 0.1306504373 | N13: 0.1314588997 | O13: 0.1314588997 | P13: 0.1306504373 | Q13: 0.1288639557 | R13: 0.1257260706 | S13: 0.1206084066 | T13: 0.1126373029 | U13: 0.1009889844 | V13: 0.08576587649 | W13: 0.06896404036 | X13: 0.05370829504 | AA13: 4-7 | AB13: % | AC13: 44 | AD13: 0.07 | AE13: 7 | AF13: cv_7 | AG13: cv_7 = range(cv_7).value
C14: 5 | D14: 6.75' | E14: 0.04661043158 | F14: 0.05629414643 | G14: 0.06663808805 | H14: 0.07628373889 | I14: 0.08421899135 | J14: 0.09013988451 | K14: 0.09425376226 | L14: 0.09693865237 | M14: 0.0985358186 | N14: 0.09927752399 | O14: 0.09927752399 | P14: 0.0985358186 | Q14: 0.09693865237 | R14: 0.09425376226 | S14: 0.09013988451 | T14: 0.08421899135 | U14: 0.07628373889 | V14: 0.06663808805 | W14: 0.05629414643 | X14: 0.04661043158 | AA14: 2-4 | AB14: % | AC14: 43 | AD14: 0.04 | AE14: 6 | AF14: cv_6 | AG14: cv_6 = range(cv_6).value
C15: 6 | D15: 8.25' | E15: 0.04031816258 | F15: 0.04656723685 | G15: 0.05311757648 | H15: 0.05932643434 | I15: 0.06466637331 | J15: 0.06888926316 | K15: 0.07199949336 | L15: 0.0741329875 | M15: 0.07545001698 | N15: 0.0760755909 | O15: 0.0760755909 | P15: 0.07545001698 | Q15: 0.0741329875 | R15: 0.07199949336 | S15: 0.06888926316 | T15: 0.06466637331 | U15: 0.05932643434 | V15: 0.05311757648 | W15: 0.04656723685 | X15: 0.04031816258 | AA15: 1-2 | AB15: % | AC15: 37 | AD15: 0.02 | AE15: 5 | AF15: cv_5 | AG15: cv_5 = range(cv_5).value
C16: 7 | D16: 9.75' | E16: 0.03530182178 | F16: 0.03943156744 | G16: 0.04370425557 | H16: 0.04779407664 | I16: 0.05141311615 | J16: 0.0543901185 | K16: 0.05667667563 | L16: 0.05830560015 | M16: 0.05934106295 | N16: 0.05984201202 | O16: 0.05984201202 | P16: 0.05934106295 | Q16: 0.05830560015 | R16: 0.05667667563 | S16: 0.0543901185 | T16: 0.05141311615 | U16: 0.04779407664 | V16: 0.04370425557 | W16: 0.03943156744 | X16: 0.03530182178 | AA16: .5-1 | AB16: % | AC16: 42 | AD16: 0.01 | AE16: 4 | AF16: cv_4 | AG16: cv_4 = range(cv_4).value
C17: 8 | D17: 11.25' | E17: 0.03143044442 | F17: 0.03422423284 | G17: 0.03708616747 | H17: 0.03984207875 | I17: 0.0423269658 | J17: 0.0444268575 | K17: 0.04608857372 | L17: 0.04730584195 | M17: 0.04809704998 | N17: 0.04848532026 | O17: 0.04848532026 | P17: 0.04809704998 | Q17: 0.04730584195 | R17: 0.04608857372 | S17: 0.0444268575 | T17: 0.0423269658 | U17: 0.03984207875 | V17: 0.03708616747 | W17: 0.03422423284 | X17: 0.03143044442 | AA17: .2-5 | AB17: % | AC17: 23 | AD17: 0.005 | AE17: 3 | AF17: cv_3 | AG17: cv_3 = range(cv_3).value
C18: 9 | D18: 12.75' | E18: 0.02846952754 | F18: 0.03039989001 | G18: 0.03236122338 | H18: 0.03425689351 | I18: 0.03598789389 | J18: 0.03747815167 | K18: 0.03868259886 | L18: 0.03958291671 | M18: 0.0401778323 | N18: 0.04047291331 | O18: 0.04047291331 | P18: 0.0401778323 | Q18: 0.03958291671 | R18: 0.03868259886 | S18: 0.03747815167 | T18: 0.03598789389 | U18: 0.03425689351 | V18: 0.03236122338 | W18: 0.03039989001 | X18: 0.02846952754 | AA18: .1-.2 | AB18: % | AC18: 5 | AD18: 0.002 | AE18: 2 | AF18: cv_2 | AG18: cv_2 = range(cv_2).value
C19: 10 | D19: 14.25' | E19: 0.02622264351 | F19: 0.02758399187 | G19: 0.02895722186 | H19: 0.03028758737 | I19: 0.03151305227 | J19: 0.03258185647 | K19: 0.03345868088 | L19: 0.03412369352 | M19: 0.03456842843 | N19: 0.03479076047 | O19: 0.03479076047 | P19: 0.03456842843 | Q19: 0.03412369352 | R19: 0.03345868088 | S19: 0.03258185647 | T19: 0.03151305227 | U19: 0.03028758737 | V19: 0.02895722186 | W19: 0.02758399187 | X19: 0.02622264351 | AA19: <.1 | AB19: % | AC19: 1 | AD19: 0.001 | AE19: 1 | AF19: cv_1 | AG19: =AF19&" = range("&AF19&").value" -> cv_1 = range(cv_1).value
C20: 11 | D20: 15.75' | E20: =VLOOKUP($C20,gridTbl,HLOOKUP(E$7,gridTbl,4,FALSE),FALSE) -> 0.02445234251 | F20: 0.02542200775 | G20: 0.02639355478 | H20: 0.02733639724 | I20: 0.02821045064 | J20: 0.02897987783 | K20: 0.02961788718 | L20: 0.03010686283 | M20: 0.03043672823 | N20: 0.03060258254 | O20: =VLOOKUP($C20,gridTbl,HLOOKUP(O$7,gridTbl,4,FALSE),FALSE) -> 0.03060258254 | P20: 0.03043672823 | Q20: 0.03010686283 | R20: 0.02961788718 | S20: 0.02897987783 | T20: 0.02821045064 | U20: 0.02733639724 | V20: 0.02639355478 | W20: 0.02542200775 | X20: 0.02445234251
C21: 12 | D21: 17.25' | E21: 0.02304148797 | F21: 0.02373541086 | G21: 0.02442607812 | H21: 0.02509749747 | I21: 0.02572315843 | J21: 0.02627781101 | K21: 0.02674138327 | L21: 0.02709940904 | M21: 0.02734248103 | N21: 0.02746521128 | O21: 0.02746521128 | P21: 0.02734248103 | Q21: 0.02709940904 | R21: 0.02674138327 | S21: 0.02627781101 | T21: 0.02572315843 | U21: 0.02509749747 | V21: 0.02442607812 | W21: 0.02373541086 | X21: 0.02304148797
C22: 13 | D22: 18.75' | E22: 0.02190339296 | F22: 0.022399257 | G22: 0.02288940692 | H22: 0.02336703396 | I22: 0.0238143315 | J22: 0.0242132198 | K22: 0.02454871043 | L22: 0.02480936008 | M22: 0.02498718437 | N22: 0.02507725678 | O22: 0.02507725678 | P22: 0.02498718437 | Q22: 0.02480936008 | R22: 0.02454871043 | S22: 0.0242132198 | T22: 0.0238143315 | U22: 0.02336703396 | V22: 0.02288940692 | W22: 0.022399257 | X22: 0.02190339296
C23: 14 | D23: 20.25' | E23: 0.02097082152 | F23: 0.02132521106 | G23: 0.0216695839 | H23: 0.0220064637 | I23: 0.02232380482 | J23: 0.02260847361 | K23: 0.02284926378 | L23: 0.02303729196 | M23: 0.02316609005 | N23: 0.0232314992 | O23: 0.0232314992 | P23: 0.02316609005 | Q23: 0.02303729196 | R23: 0.02284926378 | S23: 0.02260847361 | T23: 0.02232380482 | U23: 0.0220064637 | V23: 0.0216695839 | W23: 0.02132521106 | X23: 0.02097082152
C24: 15 | D24: 21.75' | E24: 0.02017930374 | F24: 0.0204310588 | G24: 0.02067575139 | H24: 0.02091649359 | I24: 0.02114113242 | J24: 0.02134113657 | K24: 0.02151135576 | L24: 0.0216449561 | M24: 0.02173682527 | N24: 0.02178359312 | O24: 0.02178359312 | P24: 0.02173682527 | Q24: 0.0216449561 | R24: 0.02151135576 | S24: 0.02134113657 | T24: 0.02114113242 | U24: 0.02091649359 | V24: 0.02067575139 | W24: 0.0204310588 | X24: 0.02017930374
C25: 16 | D25: 23.25' | E25: 0.01952099931 | F25: 0.019691174 | G25: 0.01985466025 | H25: 0.02001737293 | I25: 0.0201738256 | J25: 0.02031673057 | K25: 0.0204396453 | L25: 0.02053503899 | M25: 0.02059896858 | N25: 0.02063160115 | O25: 0.02063160115 | P25: 0.02059896858 | Q25: 0.02053503899 | R25: 0.0204396453 | S25: 0.02031673057 | T25: 0.0201738256 | U25: 0.02001737293 | V25: 0.01985466025 | W25: 0.019691174 | X25: 0.01952099931
C26: 17 | D26: 24.75' | E26: 0.0189673633 | F26: 0.01907525055 | G26: 0.01917705422 | H26: 0.01928067278 | I26: 0.01938257567 | J26: 0.01947728063 | K26: 0.01955990206 | L26: 0.01962634634 | M26: 0.01967344641 | N26: 0.01969853194 | O26: 0.01969853194 | P26: 0.01967344641 | Q26: 0.01962634634 | R26: 0.01955990206 | S26: 0.01947728063 | T26: 0.01938257567 | U26: 0.01928067278 | V26: 0.01917705422 | W26: 0.01907525055 | X26: 0.0189673633
C27: 18 | D27: 26.25' | E27: 0.01849711275 | F27: 0.0185566561 | G27: 0.01861088993 | H27: 0.01866900413 | I27: 0.01872874624 | J27: 0.0187858308 | K27: 0.01883642763 | L27: 0.01887731547 | M27: 0.01890599532 | N27: 0.01892076553 | O27: 0.01892076553 | P27: 0.01890599532 | Q27: 0.01887731547 | R27: 0.01883642763 | S27: 0.0187858308 | T27: 0.01872874624 | U27: 0.01866900413 | V27: 0.01861088993 | W27: 0.0185566561 | X27: 0.01849711275
C28: 19 | D28: 27.75' | E28: 0.01809477289 | F28: 0.01811563685 | G28: 0.01813189866 | H28: 0.01815383676 | I28: 0.01818027177 | J28: 0.01820792466 | K28: 0.01823385659 | L28: 0.01825558553 | M28: 0.01827117697 | N28: 0.01827930814 | O28: 0.01827930814 | P28: 0.01827117697 | Q28: 0.01825558553 | R28: 0.01823385659 | S28: 0.01820792466 | T28: 0.01818027177 | U28: 0.01815383676 | V28: 0.01813189866 | W28: 0.01811563685 | X28: 0.01809477289
C29: 20 | D29: 29.25' | E29: 0.01774564617 | F29: 0.01773612491 | G29: 0.01772269319 | H29: 0.0177164387 | I29: 0.01771697748 | J29: 0.0177217797 | K29: 0.01772857562 | L29: 0.01773544403 | M29: 0.01774088346 | N29: 0.01774386465 | O29: 0.01774386465 | P29: 0.01774088346 | Q29: 0.01773544403 | R29: 0.01772857562 | S29: 0.0177217797 | T29: 0.01771697748 | U29: 0.0177164387 | V29: 0.01772269319 | W29: 0.01773612491 | X29: 0.01774564617
N31: 0.034
E34: average overcast Iluminance for a day
F35: Lux
E36: Jan | F36: 6467.777778
E37: Feb | F37: 7719.090909
E38: Mar | F38: 10948.18182
E39: Apr | F39: 12676.15385
E40: May | F40: 13262
E41: Jun | F41: 14234
E42: Jul | F42: 13376
E43: Aug | F43: 12768.46154
E44: Sep | F44: 9396.153846
E45: Oct | F45: 7606.363636
E46: Nov | F46: 6408.888889
E47: Dec | F47: 5417.777778
